Workbook

Sheet Admin
AA1: Year | AB1: Month
A2: Model | B2: ReskWh | AA2: 1995 | AB2: 1
AA3: 1996 | AB3: 2
A4: Actual | B4: Year | C4: Month | AA4: 1997 | AB4: 3
A5: From Date | B5: 2005 | C5: 4 | AA5: 1998 | AB5: 4
A6: To Date | B6: 2013 | C6: 12 | AA6: 1999 | AB6: 5
AA7: 2000 | AB7: 6
A8: Forecast Term | B8: 2 | C8: Years | AA8: 2001 | AB8: 7
AA9: 2002 | AB9: 8
A10: Forecast | B10: Year | C10: Month | AA10: 2003 | AB10: 9
A11: From Date | B11: 2014 | C11: 1 | E11: Months | AA11: 2004 | AB11: 10
A12: To Date | B12: 2015 | C12: 12 | E12: =MyMonthsCount(B11,C11,B12,C12) -> 24 | AA12: 2005 | AB12: 11
AA13: 2006 | AB13: 12
AA14: 2007
AA15: 2008
AA16: 2009
AA17: 2010
AA18: 2011
AA19: 2012
AA20: 2013
AA21: 2014
AA22: 2015
AA23: 2016
AA24: 2017
AA25: 2018
AA26: 2019
AA27: 2020
AA28: 2021
AA29: 2022
AA30: 2023
AA31: 2024
AA32: 2025
AA33: 2026
AA34: 2027
AA35: 2028
AA36: 2029
AA37: 2030

Sheet Monthly Data
A1: Date | B1: ReskWh | C1: HDD_Lond | D1: CDD_Lond | E1: MonthDays | F1: Shoulder1 | G1: FTE_Ont
A2: 2005-04-01 | B2: 7994353 | C2: 310.3 | D2: 0 | E2: 30 | F2: 1 | G2: 5043
A3: 2005-05-01 | B3: 8370528 | C3: 198.5 | D3: 0 | E3: 31 | F3: 1 | G3: 5122.1
A4: 2005-06-01 | B4: 10389917 | C4: 11.4 | D4: 121.1 | E4: 30 | F4: 0 | G4: 5236.3
A5: 2005-07-01 | B5: 12583059 | C5: 1.5 | D5: 137.5 | E5: 31 | F5: 0 | G5: 5342
A6: 2005-08-01 | B6: 11214871 | C6: 4.5 | D6: 106.3 | E6: 31 | F6: 0 | G6: 5416.4
A7: 2005-09-01 | B7: 8794917 | C7: 30.5 | D7: 34.7 | E7: 30 | F7: 1 | G7: 5396
A8: 2005-10-01 | B8: 8286547 | C8: 228.3 | D8: 8.7 | E8: 31 | F8: 1 | G8: 5335.3
A9: 2005-11-01 | B9: 9138335 | C9: 392.7 | D9: 0 | E9: 30 | F9: 1 | G9: 5247.1
A10: 2005-12-01 | B10: 10840969 | C10: 702.3 | D10: 0 | E10: 31 | F10: 0 | G10: 5224.1
A11: 2006-01-01 | B11: 10447261 | C11: 554.7 | D11: 0 | E11: 31 | F11: 0 | G11: 5175.3
A12: 2006-02-01 | B12: 9290165 | C12: 609.3 | D12: 0 | E12: 28 | F12: 0 | G12: 5136.2
A13: 2006-03-01 | B13: 9550777 | C13: 545.7 | D13: 0 | E13: 31 | F13: 1 | G13: 5107.1
A14: 2006-04-01 | B14: 7928570 | C14: 286.1 | D14: 0 | E14: 30 | F14: 1 | G14: 5137.7
A15: 2006-05-01 | B15: 8239356 | C15: 151.9 | D15: 22.9 | E15: 31 | F15: 1 | G15: 5243.8
A16: 2006-06-01 | B16: 9433262 | C16: 26.7 | D16: 44.4 | E16: 30 | F16: 0 | G16: 5352.8
A17: 2006-07-01 | B17: 11873826 | C17: 3.3 | D17: 133.7 | E17: 31 | F17: 0 | G17: 5464.8
A18: 2006-08-01 | B18: 10694615 | C18: 5.3 | D18: 68.2 | E18: 31 | F18: 0 | G18: 5505.8
A19: 2006-09-01 | B19: 8299435 | C19: 98.5 | D19: 5 | E19: 30 | F19: 1 | G19: 5456.2
A20: 2006-10-01 | B20: 8756421 | C20: 307.9 | D20: 0.7 | E20: 31 | F20: 1 | G20: 5374.9
A21: 2006-11-01 | B21: 9303930 | C21: 383.4 | D21: 0 | E21: 30 | F21: 1 | G21: 5278.7
A22: 2006-12-01 | B22: 10447715 | C22: 511.9 | D22: 0 | E22: 31 | F22: 0 | G22: 5263.7
A23: 2007-01-01 | B23: 11056491 | C23: 655.6 | D23: 0 | E23: 31 | F23: 0 | G23: 5216.5
A24: 2007-02-01 | B24: 10272579 | C24: 758.7 | D24: 0 | E24: 28 | F24: 0 | G24: 5184.9
A25: 2007-03-01 | B25: 9990728 | C25: 527 | D25: 0 | E25: 31 | F25: 1 | G25: 5167.7
A26: 2007-04-01 | B26: 8524722 | C26: 371.1 | D26: 0 | E26: 30 | F26: 1 | G26: 5197.5
A27: 2007-05-01 | B27: 8580554 | C27: 131.9 | D27: 22.7 | E27: 31 | F27: 1 | G27: 5280.6
A28: 2007-06-01 | B28: 9896039 | C28: 23.2 | D28: 70.2 | E28: 30 | F28: 0 | G28: 5391.3
A29: 2007-07-01 | B29: 11095426 | C29: 11.3 | D29: 71.6 | E29: 31 | F29: 0 | G29: 5513.8
A30: 2007-08-01 | B30: 11118846 | C30: 11.5 | D30: 89.1 | E30: 31 | F30: 0 | G30: 5582.2
A31: 2007-09-01 | B31: 9280411 | C31: 61 | D31: 35 | E31: 30 | F31: 1 | G31: 5544.2
A32: 2007-10-01 | B32: 8912500 | C32: 149.9 | D32: 21.5 | E32: 31 | F32: 1 | G32: 5479.1
A33: 2007-11-01 | B33: 9642232 | C33: 468.7 | D33: 0 | E33: 30 | F33: 1 | G33: 5395.6
A34: 2007-12-01 | B34: 11291760 | C34: 657 | D34: 0 | E34: 31 | F34: 0 | G34: 5374.1
A35: 2008-01-01 | B35: 11206263 | C35: 639 | D35: 0 | E35: 31 | F35: 0 | G35: 5323.9
A36: 2008-02-01 | B36: 10447561 | C36: 692.5 | D36: 0 | E36: 29 | F36: 0 | G36: 5303.7
A37: 2008-03-01 | B37: 10134324 | C37: 627.3 | D37: 0 | E37: 31 | F37: 1 | G37: 5278.9
A38: 2008-04-01 | B38: 8281971 | C38: 265 | D38: 0 | E38: 30 | F38: 1 | G38: 5310.6
A39: 2008-05-01 | B39: 8439719 | C39: 208.8 | D39: 2.1 | E39: 31 | F39: 1 | G39: 5370.3
A40: 2008-06-01 | B40: 9665506 | C40: 24.1 | D40: 66.4 | E40: 30 | F40: 0 | G40: 5458.4
A41: 2008-07-01 | B41: 11397420 | C41: 4 | D41: 97 | E41: 31 | F41: 0 | G41: 5533.6
A42: 2008-08-01 | B42: 10834750 | C42: 12.4 | D42: 53.2 | E42: 31 | F42: 0 | G42: 5592.4
A43: 2008-09-01 | B43: 8912187 | C43: 56.7 | D43: 21.4 | E43: 30 | F43: 1 | G43: 5556.1
A44: 2008-10-01 | B44: 8681291 | C44: 286.8 | D44: 0 | E44: 31 | F44: 1 | G44: 5512.3
A45: 2008-11-01 | B45: 9725130 | C45: 468.3 | D45: 0 | E45: 30 | F45: 1 | G45: 5407.2
A46: 2008-12-01 | B46: 11498791 | C46: 671 | D46: 0 | E46: 31 | F46: 0 | G46: 5368
A47: 2009-01-01 | B47: 11709609 | C47: 849.6 | D47: 0 | E47: 31 | F47: 0 | G47: 5275.1
A48: 2009-02-01 | B48: 9815166 | C48: 612.7 | D48: 0 | E48: 28 | F48: 0 | G48: 5201
A49: 2009-03-01 | B49: 9808765 | C49: 533.3 | D49: 0 | E49: 31 | F49: 1 | G49: 5125
A50: 2009-04-01 | B50: 8409247 | C50: 307 | D50: 3.2 | E50: 30 | F50: 1 | G50: 5119.4
A51: 2009-05-01 | B51: 8083578 | C51: 156.9 | D51: 3.1 | E51: 31 | F51: 1 | G51: 5157.3
A52: 2009-06-01 | B52: 8696876 | C52: 49.7 | D52: 35.5 | E52: 30 | F52: 0 | G52: 5215.6
A53: 2009-07-01 | B53: 10187430 | C53: 20.2 | D53: 29.4 | E53: 31 | F53: 0 | G53: 5294
A54: 2009-08-01 | B54: 10699164 | C54: 17.9 | D54: 71.9 | E54: 31 | F54: 0 | G54: 5345.8
A55: 2009-09-01 | B55: 8848220 | C55: 71.2 | D55: 15.9 | E55: 30 | F55: 1 | G55: 5347.8
A56: 2009-10-01 | B56: 8897476 | C56: 301.2 | D56: 0 | E56: 31 | F56: 1 | G56: 5314.9
A57: 2009-11-01 | B57: 9169954 | C57: 356.7 | D57: 0 | E57: 30 | F57: 1 | G57: 5267.8
A58: 2009-12-01 | B58: 11362006 | C58: 637.3 | D58: 0 | E58: 31 | F58: 0 | G58: 5254.5
A59: 2010-01-01 | B59: 11364520 | C59: 733.1 | D59: 0 | E59: 31 | F59: 0 | G59: 5212.8
A60: 2010-02-01 | B60: 9704226 | C60: 633.4 | D60: 0 | E60: 28 | F60: 0 | G60: 5186
A61: 2010-03-01 | B61: 9302812 | C61: 450.2 | D61: 0 | E61: 31 | F61: 1 | G61: 5159.6
A62: 2010-04-01 | B62: 8105351 | C62: 236.4 | D62: 0 | E62: 30 | F62: 1 | G62: 5180.2
A63: 2010-05-01 | B63: 8972250 | C63: 121.1 | D63: 34.9 | E63: 31 | F63: 1 | G63: 5249.5
A64: 2010-06-01 | B64: 10612346 | C64: 23.6 | D64: 57.5 | E64: 30 | F64: 0 | G64: 5359.8
A65: 2010-07-01 | B65: 12697627 | C65: 5.6 | D65: 129.7 | E65: 31 | F65: 0 | G65: 5456
A66: 2010-08-01 | B66: 11860873 | C66: 6 | D66: 121.7 | E66: 31 | F66: 0 | G66: 5503.9
A67: 2010-09-01 | B67: 8944230 | C67: 87.9 | D67: 24.1 | E67: 30 | F67: 1 | G67: 5453.3
A68: 2010-10-01 | B68: 8467380 | C68: 239.5 | D68: 0 | E68: 31 | F68: 1 | G68: 5408.6
A69: 2010-11-01 | B69: 9247991 | C69: 413.6 | D69: 0 | E69: 30 | F69: 1 | G69: 5349.4
A70: 2010-12-01 | B70: 11100789 | C70: 713.5 | D70: 0 | E70: 31 | F70: 0 | G70: 5352.4
A71: 2011-01-01 | B71: 11478543 | C71: 798.8 | D71: 0 | E71: 31 | F71: 0 | G71: 5316.6
A72: 2011-02-01 | B72: 9828747 | C72: 677.8 | D72: 0 | E72: 28 | F72: 0 | G72: 5289.1
A73: 2011-03-01 | B73: 9870149 | C73: 599.6 | D73: 0 | E73: 31 | F73: 1 | G73: 5280.1
A74: 2011-04-01 | B74: 8634932 | C74: 330.4 | D74: 0 | E74: 30 | F74: 1 | G74: 5317.8
A75: 2011-05-01 | B75: 8604284 | C75: 126.4 | D75: 17.4 | E75: 31 | F75: 1 | G75: 5405.5
A76: 2011-06-01 | B76: 9863266 | C76: 27 | D76: 39.6 | E76: 30 | F76: 0 | G76: 5496
A77: 2011-07-01 | B77: 13084587 | C77: 0 | D77: 160.9 | E77: 31 | F77: 0 | G77: 5593.1
A78: 2011-08-01 | B78: 11708342 | C78: 1.5 | D78: 82.9 | E78: 31 | F78: 0 | G78: 5646.1
A79: 2011-09-01 | B79: 8861720 | C79: 71.9 | D79: 29 | E79: 30 | F79: 1 | G79: 5620.8
A80: 2011-10-01 | B80: 8436122 | C80: 234.6 | D80: 0 | E80: 31 | F80: 1 | G80: 5541.4
A81: 2011-11-01 | B81: 8858646 | C81: 347.9 | D81: 0 | E81: 30 | F81: 1 | G81: 5456.6
A82: 2011-12-01 | B82: 10356171 | C82: 548.4 | D82: 0 | E82: 31 | F82: 0 | G82: 5422
A83: 2012-01-01 | B83: 10568683 | C83: 644.8 | D83: 0 | E83: 31 | F83: 0 | G83: 5377.2
A84: 2012-02-01 | B84: 9506375 | C84: 553 | D84: 0 | E84: 29 | F84: 0 | G84: 5332.1
A85: 2012-03-01 | B85: 8893020 | C85: 331.1 | D85: 2.2 | E85: 31 | F85: 1 | G85: 5313.9
A86: 2012-04-01 | B86: 7973891 | C86: 334.6 | D86: 0 | E86: 30 | F86: 1 | G86: 5361.4
A87: 2012-05-01 | B87: 8521416 | C87: 87.2 | D87: 28.5 | E87: 31 | F87: 1 | G87: 5441
A88: 2012-06-01 | B88: 10787976 | C88: 28.2 | D88: 81.7 | E88: 30 | F88: 0 | G88: 5536.5
A89: 2012-07-01 | B89: 13043099 | C89: 0 | D89: 161 | E89: 31 | F89: 0 | G89: 5616.3
A90: 2012-08-01 | B90: 11413857 | C90: 7.8 | D90: 79.6 | E90: 31 | F90: 0 | G90: 5667.7
A91: 2012-09-01 | B91: 8938541 | C91: 103.4 | D91: 27.7 | E91: 30 | F91: 1 | G91: 5629.7
A92: 2012-10-01 | B92: 8595671 | C92: 250.5 | D92: 0.7 | E92: 31 | F92: 1 | G92: 5584.2
A93: 2012-11-01 | B93: 9181838 | C93: 420.4 | D93: 0 | E93: 30 | F93: 1 | G93: 5527
A94: 2012-12-01 | B94: 10491347 | C94: 535.9 | D94: 0 | E94: 31 | F94: 0 | G94: 5517.3
A95: 2013-01-01 | B95: 10899532.4 | C95: 657.4 | D95: 0 | E95: 31 | F95: 0 | G95: 5451.7
A96: 2013-02-01 | B96: 9715342.56 | C96: 657 | D96: 0 | E96: 28 | F96: 0 | G96: 5400.4
A97: 2013-03-01 | B97: 9989140.57 | C97: 581.9 | D97: 0 | E97: 31 | F97: 1 | G97: 5358.4
A98: 2013-04-01 | B98: 8576997.38 | C98: 362.2 | D98: 0 | E98: 30 | F98: 1 | G98: 5397
A99: 2013-05-01 | B99: 8413381.62 | C99: 122.2 | D99: 27 | E99: 31 | F99: 1 | G99: 5505.6
A100: 2013-06-01 | B100: 9697931.85 | C100: 41.1 | D100: 52.7 | E100: 30 | F100: 0 | G100: 5618.4
A101: 2013-07-01 | B101: 11621703.18 | C101: 7.1 | D101: 108.8 | E101: 31 | F101: 0 | G101: 5716.1
A102: 2013-08-01 | B102: 10683811.08 | C102: 18.4 | D102: 57.5 | E102: 31 | F102: 0 | G102: 5745
A103: 2013-09-01 | B103: 9078533.98 | C103: 94.9 | D103: 26 | E103: 30 | F103: 1 | G103: 5709.9
A104: 2013-10-01 | B104: 8617112.79 | C104: 184 | D104: 2.6 | E104: 31 | F104: 1 | G104: 5655.8
A105: 2013-11-01 | B105: 9442071.16 | C105: 492.1 | D105: 0 | E105: 30 | F105: 1 | G105: 5587.4
A106: 2013-12-01 | B106: 11199465.36 | C106: 675.7 | D106: 0 | E106: 31 | F106: 0 | G106: 5558.7

Sheet OLS Model
A1: Model 1: OLS, using observations 2005:04-2013:12 (T = 105)
A2: Dependent variable: ReskWh
B4: coefficient | C4: std. error | D4: t-ratio | E4: p-value
A5: const | B5: -8181855.141 | C5: 1829998.534 | D5: -4.470962676 | E5: 2.077040425e-05
A6: HDD_Lond | B6: 3616.827641 | C6: 241.639764 | D6: 14.96784959 | E6: 3.602455872e-27
A7: CDD_Lond | B7: 25790.59239 | C7: 1653.260048 | D7: 15.5998401 | E7: 2.007971813e-28
A8: MonthDays | B8: 350571.8152 | C8: 45227.73521 | D8: 7.751257355 | E8: 8.153485381e-12
A9: Shoulder1 | B9: -844850.5755 | C9: 98323.35798 | D9: -8.592572435 | E9: 1.26950508e-13
A10: FTE_Ont | B10: 1114.998502 | C10: 255.516759 | D10: 4.363700083 | E10: 3.142545403e-05
A12: Mean dependent var | B12: 9831144.409 | C12: S.D. dependent var | D12: 1250687.398
A13: Sum squared resid | B13: 12171506512751 | C13: S.E. of regression | D13: 350634.4396
A14: R-squared | B14: 0.9251807331 | C14: Adjusted R-squared | D14: 0.9214019823
A15: F(5, 99) | B15: 244.8377174 | C15: P-value(F) | D15: 4.451978264e-54
A16: Log-likelihood | B16: -1486.486865 | C16: Akaike criterion | D16: 2984.97373
A17: Schwarz criterion | B17: 3000.897492 | C17: Hannan-Quinn | D17: 2991.426352
A18: rho | B18: 0.07523560714 | C18: Durbin-Watson | D18: 1.843595826
A19: Theil's U | B19: 0.27788

Sheet Predicted Monthly Data
A1: Date | B1: ReskWh | C1: HDD_Lond | D1: CDD_Lond | E1: MonthDays | F1: Shoulder1 | G1: FTE_Ont | I1: Const | J1: HDD_Lond | K1: CDD_Lond | L1: MonthDays | M1: Shoulder1 | N1: FTE_Ont | O1: Predicted Value
A2: 2005-04-01 | B2: 7994353 | C2: 310.3 | D2: 0 | E2: 30 | F2: 1 | G2: 5043 | I2: =const -> -8181855.141 | J2: =HDD_Lond*C2 -> 1122301.617 | K2: =CDD_Lond*D2 -> 0 | L2: =MonthDays*E2 -> 10517154.46 | M2: =Shoulder1*F2 -> -844850.5755 | N2: =FTE_Ont*G2 -> 5622937.448 | O2: =SUM(I2:N2) -> 8235687.806
A3: 2005-05-01 | B3: 8370528 | C3: 198.5 | D3: 0 | E3: 31 | F3: 1 | G3: 5122.1 | I3: -8181855.141 | J3: 717940.2867 | K3: 0 | L3: 10867726.27 | M3: -844850.5755 | N3: 5711133.829 | O3: 8270094.672
A4: 2005-06-01 | B4: 10389917 | C4: 11.4 | D4: 121.1 | E4: 30 | F4: 0 | G4: 5236.3 | I4: -8181855.141 | J4: 41231.83511 | K4: 3123240.739 | L4: 10517154.46 | M4: 0 | N4: 5838466.658 | O4: 11338238.55
A5: 2005-07-01 | B5: 12583059 | C5: 1.5 | D5: 137.5 | E5: 31 | F5: 0 | G5: 5342 | I5: -8181855.141 | J5: 5425.241461 | K5: 3546206.454 | L5: 10867726.27 | M5: 0 | N5: 5956322 | O5: 12193824.83
A6: 2005-08-01 | B6: 11214871 | C6: 4.5 | D6: 106.3 | E6: 31 | F6: 0 | G6: 5416.4 | I6: -8181855.141 | J6: 16275.72438 | K6: 2741539.971 | L6: 10867726.27 | M6: 0 | N6: 6039277.889 | O6: 11482964.72
A7: 2005-09-01 | B7: 8794917 | C7: 30.5 | D7: 34.7 | E7: 30 | F7: 1 | G7: 5396 | I7: -8181855.141 | J7: 110313.243 | K7: 894933.5561 | L7: 10517154.46 | M7: -844850.5755 | N7: 6016531.919 | O7: 8512227.459
A8: 2005-10-01 | B8: 8286547 | C8: 228.3 | D8: 8.7 | E8: 31 | F8: 1 | G8: 5335.3 | I8: -8181855.141 | J8: 825721.7504 | K8: 224378.1538 | L8: 10867726.27 | M8: -844850.5755 | N8: 5948851.51 | O8: 8839971.971
A9: 2005-11-01 | B9: 9138335 | C9: 392.7 | D9: 0 | E9: 30 | F9: 1 | G9: 5247.1 | I9: -8181855.141 | J9: 1420328.215 | K9: 0 | L9: 10517154.46 | M9: -844850.5755 | N9: 5850508.642 | O9: 8761285.598
A10: 2005-12-01 | B10: 10840969 | C10: 702.3 | D10: 0 | E10: 31 | F10: 0 | G10: 5224.1 | I10: -8181855.141 | J10: 2540098.052 | K10: 0 | L10: 10867726.27 | M10: 0 | N10: 5824863.677 | O10: 11050832.86
A11: 2006-01-01 | B11: 10447261 | C11: 554.7 | D11: 0 | E11: 31 | F11: 0 | G11: 5175.3 | I11: -8181855.141 | J11: 2006254.292 | K11: 0 | L11: 10867726.27 | M11: 0 | N11: 5770451.75 | O11: 10462577.17
A12: 2006-02-01 | B12: 9290165 | C12: 609.3 | D12: 0 | E12: 28 | F12: 0 | G12: 5136.2 | I12: -8181855.141 | J12: 2203733.082 | K12: 0 | L12: 9816010.827 | M12: 0 | N12: 5726855.308 | O12: 9564744.076
A13: 2006-03-01 | B13: 9550777 | C13: 545.7 | D13: 0 | E13: 31 | F13: 1 | G13: 5107.1 | I13: -8181855.141 | J13: 1973702.844 | K13: 0 | L13: 10867726.27 | M13: -844850.5755 | N13: 5694408.852 | O13: 9509132.252
A14: 2006-04-01 | B14: 7928570 | C14: 286.1 | D14: 0 | E14: 30 | F14: 1 | G14: 5137.7 | I14: -8181855.141 | J14: 1034774.388 | K14: 0 | L14: 10517154.46 | M14: -844850.5755 | N14: 5728527.806 | O14: 8253750.935
A15: 2006-05-01 | B15: 8239356 | C15: 151.9 | D15: 22.9 | E15: 31 | F15: 1 | G15: 5243.8 | I15: -8181855.141 | J15: 549396.1186 | K15: 590604.5658 | L15: 10867726.27 | M15: -844850.5755 | N15: 5846829.147 | O15: 8827850.388
A16: 2006-06-01 | B16: 9433262 | C16: 26.7 | D16: 44.4 | E16: 30 | F16: 0 | G16: 5352.8 | I16: -8181855.141 | J16: 96569.29801 | K16: 1145102.302 | L16: 10517154.46 | M16: 0 | N16: 5968363.984 | O16: 9545334.901
A17: 2006-07-01 | B17: 11873826 | C17: 3.3 | D17: 133.7 | E17: 31 | F17: 0 | G17: 5464.8 | I17: -8181855.141 | J17: 11935.53121 | K17: 3448202.203 | L17: 10867726.27 | M17: 0 | N17: 6093243.816 | O17: 12239252.68
A18: 2006-08-01 | B18: 10694615 | C18: 5.3 | D18: 68.2 | E18: 31 | F18: 0 | G18: 5505.8 | I18: -8181855.141 | J18: 19169.1865 | K18: 1758918.401 | L18: 10867726.27 | M18: 0 | N18: 6138958.755 | O18: 10602917.47
A19: 2006-09-01 | B19: 8299435 | C19: 98.5 | D19: 5 | E19: 30 | F19: 1 | G19: 5456.2 | I19: -8181855.141 | J19: 356257.5226 | K19: 128952.962 | L19: 10517154.46 | M19: -844850.5755 | N19: 6083654.829 | O19: 8059314.055
A20: 2006-10-01 | B20: 8756421 | C20: 307.9 | D20: 0.7 | E20: 31 | F20: 1 | G20: 5374.9 | I20: -8181855.141 | J20: 1113621.231 | K20: 18053.41468 | L20: 10867726.27 | M20: -844850.5755 | N20: 5993005.451 | O20: 8965700.652
A21: 2006-11-01 | B21: 9303930 | C21: 383.4 | D21: 0 | E21: 30 | F21: 1 | G21: 5278.7 | I21: -8181855.141 | J21: 1386691.717 | K21: 0 | L21: 10517154.46 | M21: -844850.5755 | N21: 5885742.595 | O21: 8762883.053
A22: 2006-12-01 | B22: 10447715 | C22: 511.9 | D22: 0 | E22: 31 | F22: 0 | G22: 5263.7 | I22: -8181855.141 | J22: 1851454.069 | K22: 0 | L22: 10867726.27 | M22: 0 | N22: 5869017.617 | O22: 10406342.82
A23: 2007-01-01 | B23: 11056491 | C23: 655.6 | D23: 0 | E23: 31 | F23: 0 | G23: 5216.5 | I23: -8181855.141 | J23: 2371192.201 | K23: 0 | L23: 10867726.27 | M23: 0 | N23: 5816389.688 | O23: 10873453.02
A24: 2007-02-01 | B24: 10272579 | C24: 758.7 | D24: 0 | E24: 28 | F24: 0 | G24: 5184.9 | I24: -8181855.141 | J24: 2744087.131 | K24: 0 | L24: 9816010.827 | M24: 0 | N24: 5781155.735 | O24: 10159398.55
A25: 2007-03-01 | B25: 9990728 | C25: 527 | D25: 0 | E25: 31 | F25: 1 | G25: 5167.7 | I25: -8181855.141 | J25: 1906068.167 | K25: 0 | L25: 10867726.27 | M25: -844850.5755 | N25: 5761977.761 | O25: 9509066.484
A26: 2007-04-01 | B26: 8524722 | C26: 371.1 | D26: 0 | E26: 30 | F26: 1 | G26: 5197.5 | I26: -8181855.141 | J26: 1342204.738 | K26: 0 | L26: 10517154.46 | M26: -844850.5755 | N26: 5795204.716 | O26: 8627858.195
A27: 2007-05-01 | B27: 8580554 | C27: 131.9 | D27: 22.7 | E27: 31 | F27: 1 | G27: 5280.6 | I27: -8181855.141 | J27: 477059.5658 | K27: 585446.4473 | L27: 10867726.27 | M27: -844850.5755 | N27: 5887861.092 | O27: 8791387.661
A28: 2007-06-01 | B28: 9896039 | C28: 23.2 | D28: 70.2 | E28: 30 | F28: 0 | G28: 5391.3 | I28: -8181855.141 | J28: 83910.40127 | K28: 1810499.586 | L28: 10517154.46 | M28: 0 | N28: 6011291.426 | O28: 10241000.73
A29: 2007-07-01 | B29: 11095426 | C29: 11.3 | D29: 71.6 | E29: 31 | F29: 0 | G29: 5513.8 | I29: -8181855.141 | J29: 40870.15234 | K29: 1846606.415 | L29: 10867726.27 | M29: 0 | N29: 6147878.743 | O29: 10721226.44
A30: 2007-08-01 | B30: 11118846 | C30: 11.5 | D30: 89.1 | E30: 31 | F30: 0 | G30: 5582.2 | I30: -8181855.141 | J30: 41593.51787 | K30: 2297941.782 | L30: 10867726.27 | M30: 0 | N30: 6224144.64 | O30: 11249551.07
A31: 2007-09-01 | B31: 9280411 | C31: 61 | D31: 35 | E31: 30 | F31: 1 | G31: 5544.2 | I31: -8181855.141 | J31: 220626.4861 | K31: 902670.7338 | L31: 10517154.46 | M31: -844850.5755 | N31: 6181774.697 | O31: 8795520.658
A32: 2007-10-01 | B32: 8912500 | C32: 149.9 | D32: 21.5 | E32: 31 | F32: 1 | G32: 5479.1 | I32: -8181855.141 | J32: 542162.4634 | K32: 554497.7365 | L32: 10867726.27 | M32: -844850.5755 | N32: 6109188.295 | O32: 9046869.051
A33: 2007-11-01 | B33: 9642232 | C33: 468.7 | D33: 0 | E33: 30 | F33: 1 | G33: 5395.6 | I33: -8181855.141 | J33: 1695207.115 | K33: 0 | L33: 10517154.46 | M33: -844850.5755 | N33: 6016085.92 | O33: 9201741.776
A34: 2007-12-01 | B34: 11291760 | C34: 657 | D34: 0 | E34: 31 | F34: 0 | G34: 5374.1 | I34: =const -> -8181855.141 | J34: =HDD_Lond*C34 -> 2376255.76 | K34: =CDD_Lond*D34 -> 0 | L34: =MonthDays*E34 -> 10867726.27 | M34: =Shoulder1*F34 -> 0 | N34: =FTE_Ont*G34 -> 5992113.452 | O34: =SUM(I34:N34) -> 11054240.34
A35: 2008-01-01 | B35: 11206263 | C35: 639 | D35: 0 | E35: 31 | F35: 0 | G35: 5323.9 | I35: -8181855.141 | J35: 2311152.862 | K35: 0 | L35: 10867726.27 | M35: 0 | N35: 5936140.527 | O35: 10933164.52
A36: 2008-02-01 | B36: 10447561 | C36: 692.5 | D36: 0 | E36: 29 | F36: 0 | G36: 5303.7 | I36: -8181855.141 | J36: 2504653.141 | K36: 0 | L36: 10166582.64 | M36: 0 | N36: 5913617.557 | O36: 10402998.2
A37: 2008-03-01 | B37: 10134324 | C37: 627.3 | D37: 0 | E37: 31 | F37: 1 | G37: 5278.9 | I37: -8181855.141 | J37: 2268835.979 | K37: 0 | L37: 10867726.27 | M37: -844850.5755 | N37: 5885965.595 | O37: 9995822.13
A38: 2008-04-01 | B38: 8281971 | C38: 265 | D38: 0 | E38: 30 | F38: 1 | G38: 5310.6 | I38: -8181855.141 | J38: 958459.3248 | K38: 0 | L38: 10517154.46 | M38: -844850.5755 | N38: 5921311.047 | O38: 8370219.113
A39: 2008-05-01 | B39: 8439719 | C39: 208.8 | D39: 2.1 | E39: 31 | F39: 1 | G39: 5370.3 | I39: -8181855.141 | J39: 755193.6114 | K39: 54160.24403 | L39: 10867726.27 | M39: -844850.5755 | N39: 5987876.458 | O39: 8638250.869
A40: 2008-06-01 | B40: 9665506 | C40: 24.1 | D40: 66.4 | E40: 30 | F40: 0 | G40: 5458.4 | I40: -8181855.141 | J40: 87165.54614 | K40: 1712495.335 | L40: 10517154.46 | M40: 0 | N40: 6086107.826 | O40: 10221068.02
A41: 2008-07-01 | B41: 11397420 | C41: 4 | D41: 97 | E41: 31 | F41: 0 | G41: 5533.6 | I41: -8181855.141 | J41: 14467.31056 | K41: 2501687.462 | L41: 10867726.27 | M41: 0 | N41: 6169955.713 | O41: 11371981.62
A42: 2008-08-01 | B42: 10834750 | C42: 12.4 | D42: 53.2 | E42: 31 | F42: 0 | G42: 5592.4 | I42: -8181855.141 | J42: 44848.66275 | K42: 1372059.515 | L42: 10867726.27 | M42: 0 | N42: 6235517.625 | O42: 10338296.93
A43: 2008-09-01 | B43: 8912187 | C43: 56.7 | D43: 21.4 | E43: 30 | F43: 1 | G43: 5556.1 | I43: -8181855.141 | J43: 205074.1272 | K43: 551918.6772 | L43: 10517154.46 | M43: -844850.5755 | N43: 6195043.179 | O43: 8442484.725
A44: 2008-10-01 | B44: 8681291 | C44: 286.8 | D44: 0 | E44: 31 | F44: 1 | G44: 5512.3 | I44: -8181855.141 | J44: 1037306.167 | K44: 0 | L44: 10867726.27 | M44: -844850.5755 | N44: 6146206.245 | O44: 9024532.969
A45: 2008-11-01 | B45: 9725130 | C45: 468.3 | D45: 0 | E45: 30 | F45: 1 | G45: 5407.2 | I45: -8181855.141 | J45: 1693760.384 | K45: 0 | L45: 10517154.46 | M45: -844850.5755 | N45: 6029019.902 | O45: 9213229.028
A46: 2008-12-01 | B46: 11498791 | C46: 671 | D46: 0 | E46: 31 | F46: 0 | G46: 5368 | I46: -8181855.141 | J46: 2426891.347 | K46: 0 | L46: 10867726.27 | M46: 0 | N46: 5985311.961 | O46: 11098074.44
A47: 2009-01-01 | B47: 11709609 | C47: 849.6 | D47: 0 | E47: 31 | F47: 0 | G47: 5275.1 | I47: -8181855.141 | J47: 3072856.764 | K47: 0 | L47: 10867726.27 | M47: 0 | N47: 5881728.6 | O47: 11640456.5
A48: 2009-02-01 | B48: 9815166 | C48: 612.7 | D48: 0 | E48: 28 | F48: 0 | G48: 5201 | I48: -8181855.141 | J48: 2216030.296 | K48: 0 | L48: 9816010.827 | M48: 0 | N48: 5799107.211 | O48: 9649293.193
A49: 2009-03-01 | B49: 9808765 | C49: 533.3 | D49: 0 | E49: 31 | F49: 1 | G49: 5125 | I49: -8181855.141 | J49: 1928854.181 | K49: 0 | L49: 10867726.27 | M49: -844850.5755 | N49: 5714367.325 | O49: 9484242.062
A50: 2009-04-01 | B50: 8409247 | C50: 307 | D50: 3.2 | E50: 30 | F50: 1 | G50: 5119.4 | I50: -8181855.141 | J50: 1110366.086 | K50: 82529.89566 | L50: 10517154.46 | M50: -844850.5755 | N50: 5708123.333 | O50: 8391468.056
A51: 2009-05-01 | B51: 8083578 | C51: 156.9 | D51: 3.1 | E51: 31 | F51: 1 | G51: 5157.3 | I51: -8181855.141 | J51: 567480.2568 | K51: 79950.83642 | L51: 10867726.27 | M51: -844850.5755 | N51: 5750381.777 | O51: 8238833.426
A52: 2009-06-01 | B52: 8696876 | C52: 49.7 | D52: 35.5 | E52: 30 | F52: 0 | G52: 5215.6 | I52: -8181855.141 | J52: 179756.3337 | K52: 915566.03 | L52: 10517154.46 | M52: 0 | N52: 5815386.189 | O52: 9246007.87
A53: 2009-07-01 | B53: 10187430 | C53: 20.2 | D53: 29.4 | E53: 31 | F53: 0 | G53: 5294 | I53: -8181855.141 | J53: 73059.91834 | K53: 758243.4164 | L53: 10867726.27 | M53: 0 | N53: 5902802.072 | O53: 9419976.538
A54: 2009-08-01 | B54: 10699164 | C54: 17.9 | D54: 71.9 | E54: 31 | F54: 0 | G54: 5345.8 | I54: -8181855.141 | J54: 64741.21477 | K54: 1854343.593 | L54: 10867726.27 | M54: 0 | N54: 5960558.994 | O54: 10565514.93
A55: 2009-09-01 | B55: 8848220 | C55: 71.2 | D55: 15.9 | E55: 30 | F55: 1 | G55: 5347.8 | I55: -8181855.141 | J55: 257518.128 | K55: 410070.4191 | L55: 10517154.46 | M55: -844850.5755 | N55: 5962788.991 | O55: 8120826.279
A56: 2009-10-01 | B56: 8897476 | C56: 301.2 | D56: 0 | E56: 31 | F56: 1 | G56: 5314.9 | I56: -8181855.141 | J56: 1089388.485 | K56: 0 | L56: 10867726.27 | M56: -844850.5755 | N56: 5926105.541 | O56: 8856514.582
A57: 2009-11-01 | B57: 9169954 | C57: 356.7 | D57: 0 | E57: 30 | F57: 1 | G57: 5267.8 | I57: -8181855.141 | J57: 1290122.419 | K57: 0 | L57: 10517154.46 | M57: -844850.5755 | N57: 5873589.111 | O57: 8654160.272
A58: 2009-12-01 | B58: 11362006 | C58: 637.3 | D58: 0 | E58: 31 | F58: 0 | G58: 5254.5 | I58: -8181855.141 | J58: 2305004.255 | K58: 0 | L58: 10867726.27 | M58: 0 | N58: 5858759.631 | O58: 10849635.02
A59: 2010-01-01 | B59: 11364520 | C59: 733.1 | D59: 0 | E59: 31 | F59: 0 | G59: 5212.8 | I59: -8181855.141 | J59: 2651496.343 | K59: 0 | L59: 10867726.27 | M59: 0 | N59: 5812264.194 | O59: 11149631.67
A60: 2010-02-01 | B60: 9704226 | C60: 633.4 | D60: 0 | E60: 28 | F60: 0 | G60: 5186 | I60: -8181855.141 | J60: 2290898.628 | K60: 0 | L60: 9816010.827 | M60: 0 | N60: 5782382.234 | O60: 9707436.547
A61: 2010-03-01 | B61: 9302812 | C61: 450.2 | D61: 0 | E61: 31 | F61: 1 | G61: 5159.6 | I61: -8181855.141 | J61: 1628295.804 | K61: 0 | L61: 10867726.27 | M61: -844850.5755 | N61: 5752946.273 | O61: 9222262.633
A62: 2010-04-01 | B62: 8105351 | C62: 236.4 | D62: 0 | E62: 30 | F62: 1 | G62: 5180.2 | I62: -8181855.141 | J62: 855018.0543 | K62: 0 | L62: 10517154.46 | M62: -844850.5755 | N62: 5775915.242 | O62: 8121382.038
A63: 2010-05-01 | B63: 8972250 | C63: 121.1 | D63: 34.9 | E63: 31 | F63: 1 | G63: 5249.5 | I63: -8181855.141 | J63: 437997.8273 | K63: 900091.6746 | L63: 10867726.27 | M63: -844850.5755 | N63: 5853184.639 | O63: 9032294.697
A64: 2010-06-01 | B64: 10612346 | C64: 23.6 | D64: 57.5 | E64: 30 | F64: 0 | G64: 5359.8 | I64: -8181855.141 | J64: 85357.13232 | K64: 1482959.063 | L64: 10517154.46 | M64: 0 | N64: 5976168.973 | O64: 9879784.485
A65: 2010-07-01 | B65: 12697627 | C65: 5.6 | D65: 129.7 | E65: 31 | F65: 0 | G65: 5456 | I65: -8181855.141 | J65: 20254.23479 | K65: 3345039.834 | L65: 10867726.27 | M65: 0 | N65: 6083431.829 | O65: 12134597.03
A66: 2010-08-01 | B66: 11860873 | C66: 6 | D66: 121.7 | E66: 31 | F66: 0 | G66: 5503.9 | I66: =const -> -8181855.141 | J66: =HDD_Lond*C66 -> 21700.96584 | K66: =CDD_Lond*D66 -> 3138715.094 | L66: =MonthDays*E66 -> 10867726.27 | M66: =Shoulder1*F66 -> 0 | N66: =FTE_Ont*G66 -> 6136840.258 | O66: =SUM(I66:N66) -> 11983127.45
A67: 2010-09-01 | B67: 8944230 | C67: 87.9 | D67: 24.1 | E67: 30 | F67: 1 | G67: 5453.3 | I67: -8181855.141 | J67: 317919.1496 | K67: 621553.2767 | L67: 10517154.46 | M67: -844850.5755 | N67: 6080421.333 | O67: 8510342.501
A68: 2010-10-01 | B68: 8467380 | C68: 239.5 | D68: 0 | E68: 31 | F68: 1 | G68: 5408.6 | I68: -8181855.141 | J68: 866230.22 | K68: 0 | L68: 10867726.27 | M68: -844850.5755 | N68: 6030580.9 | O68: 8737831.677
A69: 2010-11-01 | B69: 9247991 | C69: 413.6 | D69: 0 | E69: 30 | F69: 1 | G69: 5349.4 | I69: -8181855.141 | J69: 1495919.912 | K69: 0 | L69: 10517154.46 | M69: -844850.5755 | N69: 5964572.989 | O69: 8950941.642
A70: 2010-12-01 | B70: 11100789 | C70: 713.5 | D70: 0 | E70: 31 | F70: 0 | G70: 5352.4 | I70: -8181855.141 | J70: 2580606.522 | K70: 0 | L70: 10867726.27 | M70: 0 | N70: 5967917.985 | O70: 11234395.64
A71: 2011-01-01 | B71: 11478543 | C71: 798.8 | D71: 0 | E71: 31 | F71: 0 | G71: 5316.6 | I71: -8181855.141 | J71: 2889121.919 | K71: 0 | L71: 10867726.27 | M71: 0 | N71: 5928001.038 | O71: 11502994.09
A72: 2011-02-01 | B72: 9828747 | C72: 677.8 | D72: 0 | E72: 28 | F72: 0 | G72: 5289.1 | I72: -8181855.141 | J72: 2451485.775 | K72: 0 | L72: 9816010.827 | M72: 0 | N72: 5897338.579 | O72: 9982980.04
A73: 2011-03-01 | B73: 9870149 | C73: 599.6 | D73: 0 | E73: 31 | F73: 1 | G73: 5280.1 | I73: -8181855.141 | J73: 2168649.853 | K73: 0 | L73: 10867726.27 | M73: -844850.5755 | N73: 5887303.593 | O73: 9896974.002
A74: 2011-04-01 | B74: 8634932 | C74: 330.4 | D74: 0 | E74: 30 | F74: 1 | G74: 5317.8 | I74: -8181855.141 | J74: 1194999.853 | K74: 0 | L74: 10517154.46 | M74: -844850.5755 | N74: 5929339.036 | O74: 8614787.63
A75: 2011-05-01 | B75: 8604284 | C75: 126.4 | D75: 17.4 | E75: 31 | F75: 1 | G75: 5405.5 | I75: -8181855.141 | J75: 457167.0138 | K75: 448756.3077 | L75: 10867726.27 | M75: -844850.5755 | N75: 6027124.405 | O75: 8774068.283
A76: 2011-06-01 | B76: 9863266 | C76: 27 | D76: 39.6 | E76: 30 | F76: 0 | G76: 5496 | I76: -8181855.141 | J76: 97654.3463 | K76: 1021307.459 | L76: 10517154.46 | M76: 0 | N76: 6128031.769 | O76: 9582292.891
A77: 2011-07-01 | B77: 13084587 | C77: 0 | D77: 160.9 | E77: 31 | F77: 0 | G77: 5593.1 | I77: -8181855.141 | J77: 0 | K77: 4149706.316 | L77: 10867726.27 | M77: 0 | N77: 6236298.124 | O77: 13071875.57
A78: 2011-08-01 | B78: 11708342 | C78: 1.5 | D78: 82.9 | E78: 31 | F78: 0 | G78: 5646.1 | I78: -8181855.141 | J78: 5425.241461 | K78: 2138040.109 | L78: 10867726.27 | M78: 0 | N78: 6295393.045 | O78: 11124729.53
A79: 2011-09-01 | B79: 8861720 | C79: 71.9 | D79: 29 | E79: 30 | F79: 1 | G79: 5620.8 | I79: -8181855.141 | J79: 260049.9074 | K79: 747927.1794 | L79: 10517154.46 | M79: -844850.5755 | N79: 6267183.583 | O79: 8765609.41
A80: 2011-10-01 | B80: 8436122 | C80: 234.6 | D80: 0 | E80: 31 | F80: 1 | G80: 5541.4 | I80: -8181855.141 | J80: 848507.7645 | K80: 0 | L80: 10867726.27 | M80: -844850.5755 | N80: 6178652.701 | O80: 8868181.022
A81: 2011-11-01 | B81: 8858646 | C81: 347.9 | D81: 0 | E81: 30 | F81: 1 | G81: 5456.6 | I81: -8181855.141 | J81: 1258294.336 | K81: 0 | L81: 10517154.46 | M81: -844850.5755 | N81: 6084100.828 | O81: 8832843.906
A82: 2011-12-01 | B82: 10356171 | C82: 548.4 | D82: 0 | E82: 31 | F82: 0 | G82: 5422 | I82: -8181855.141 | J82: 1983468.278 | K82: 0 | L82: 10867726.27 | M82: 0 | N82: 6045521.88 | O82: 10714861.29
A83: 2012-01-01 | B83: 10568683 | C83: 644.8 | D83: 0 | E83: 31 | F83: 0 | G83: 5377.2 | I83: -8181855.141 | J83: 2332130.463 | K83: 0 | L83: 10867726.27 | M83: 0 | N83: 5995569.947 | O83: 11013571.54
A84: 2012-02-01 | B84: 9506375 | C84: 553 | D84: 0 | E84: 29 | F84: 0 | G84: 5332.1 | I84: -8181855.141 | J84: 2000105.685 | K84: 0 | L84: 10166582.64 | M84: 0 | N84: 5945283.515 | O84: 9930116.701
A85: 2012-03-01 | B85: 8893020 | C85: 331.1 | D85: 2.2 | E85: 31 | F85: 1 | G85: 5313.9 | I85: -8181855.141 | J85: 1197531.632 | K85: 56739.30327 | L85: 10867726.27 | M85: -844850.5755 | N85: 5924990.542 | O85: 9020282.034
A86: 2012-04-01 | B86: 7973891 | C86: 334.6 | D86: 0 | E86: 30 | F86: 1 | G86: 5361.4 | I86: -8181855.141 | J86: 1210190.529 | K86: 0 | L86: 10517154.46 | M86: -844850.5755 | N86: 5977952.971 | O86: 8678592.241
A87: 2012-05-01 | B87: 8521416 | C87: 87.2 | D87: 28.5 | E87: 31 | F87: 1 | G87: 5441 | I87: -8181855.141 | J87: 315387.3703 | K87: 735031.8832 | L87: 10867726.27 | M87: -844850.5755 | N87: 6066706.852 | O87: 8958146.662
A88: 2012-06-01 | B88: 10787976 | C88: 28.2 | D88: 81.7 | E88: 30 | F88: 0 | G88: 5536.5 | I88: -8181855.141 | J88: 101994.5395 | K88: 2107091.399 | L88: 10517154.46 | M88: 0 | N88: 6173189.209 | O88: 10717574.46
A89: 2012-07-01 | B89: 13043099 | C89: 0 | D89: 161 | E89: 31 | F89: 0 | G89: 5616.3 | I89: -8181855.141 | J89: 0 | K89: 4152285.375 | L89: 10867726.27 | M89: 0 | N89: 6262166.089 | O89: 13100322.6
A90: 2012-08-01 | B90: 11413857 | C90: 7.8 | D90: 79.6 | E90: 31 | F90: 0 | G90: 5667.7 | I90: -8181855.141 | J90: 28211.2556 | K90: 2052931.155 | L90: 10867726.27 | M90: 0 | N90: 6319477.012 | O90: 11086490.55
A91: 2012-09-01 | B91: 8938541 | C91: 103.4 | D91: 27.7 | E91: 30 | F91: 1 | G91: 5629.7 | I91: -8181855.141 | J91: 373979.9781 | K91: 714399.4093 | L91: 10517154.46 | M91: -844850.5755 | N91: 6277107.069 | O91: 8855935.198
A92: 2012-10-01 | B92: 8595671 | C92: 250.5 | D92: 0.7 | E92: 31 | F92: 1 | G92: 5584.2 | I92: -8181855.141 | J92: 906015.324 | K92: 18053.41468 | L92: 10867726.27 | M92: -844850.5755 | N92: 6226374.637 | O92: 8991463.932
A93: 2012-11-01 | B93: 9181838 | C93: 420.4 | D93: 0 | E93: 30 | F93: 1 | G93: 5527 | I93: -8181855.141 | J93: 1520514.34 | K93: 0 | L93: 10517154.46 | M93: -844850.5755 | N93: 6162596.723 | O93: 9173559.804
A94: 2012-12-01 | B94: 10491347 | C94: 535.9 | D94: 0 | E94: 31 | F94: 0 | G94: 5517.3 | I94: -8181855.141 | J94: 1938257.933 | K94: 0 | L94: 10867726.27 | M94: 0 | N94: 6151781.238 | O94: 10775910.3
A95: 2013-01-01 | B95: 10899532.4 | C95: 657.4 | D95: 0 | E95: 31 | F95: 0 | G95: 5451.7 | I95: -8181855.141 | J95: 2377702.491 | K95: 0 | L95: 10867726.27 | M95: 0 | N95: 6078637.336 | O95: 11142210.96
A96: 2013-02-01 | B96: 9715342.56 | C96: 657 | D96: 0 | E96: 28 | F96: 0 | G96: 5400.4 | I96: -8181855.141 | J96: 2376255.76 | K96: 0 | L96: 9816010.827 | M96: 0 | N96: 6021437.913 | O96: 10031849.36
A97: 2013-03-01 | B97: 9989140.57 | C97: 581.9 | D97: 0 | E97: 31 | F97: 1 | G97: 5358.4 | I97: -8181855.141 | J97: 2104632.004 | K97: 0 | L97: 10867726.27 | M97: -844850.5755 | N97: 5974607.976 | O97: 9920260.536
A98: 2013-04-01 | B98: 8576997.38 | C98: 362.2 | D98: 0 | E98: 30 | F98: 1 | G98: 5397 | I98: =const -> -8181855.141 | J98: =HDD_Lond*C98 -> 1310014.972 | K98: =CDD_Lond*D98 -> 0 | L98: =MonthDays*E98 -> 10517154.46 | M98: =Shoulder1*F98 -> -844850.5755 | N98: =FTE_Ont*G98 -> 6017646.918 | O98: =SUM(I98:N98) -> 8818110.63
A99: 2013-05-01 | B99: 8413381.62 | C99: 122.2 | D99: 27 | E99: 31 | F99: 1 | G99: 5505.6 | I99: -8181855.141 | J99: 441976.3377 | K99: 696345.9946 | L99: 10867726.27 | M99: -844850.5755 | N99: 6138735.755 | O99: 9118078.644
A100: 2013-06-01 | B100: 9697931.85 | C100: 41.1 | D100: 52.7 | E100: 30 | F100: 0 | G100: 5618.4 | I100: -8181855.141 | J100: 148651.616 | K100: 1359164.219 | L100: 10517154.46 | M100: 0 | N100: 6264507.586 | O100: 10107622.74
A101: 2013-07-01 | B101: 11621703.18 | C101: 7.1 | D101: 108.8 | E101: 31 | F101: 0 | G101: 5716.1 | I101: -8181855.141 | J101: 25679.47625 | K101: 2806016.452 | L101: 10867726.27 | M101: 0 | N101: 6373442.94 | O101: 11891010
A102: 2013-08-01 | B102: 10683811.08 | C102: 18.4 | D102: 57.5 | E102: 31 | F102: 0 | G102: 5745 | I102: -8181855.141 | J102: 66549.62859 | K102: 1482959.063 | L102: 10867726.27 | M102: 0 | N102: 6405666.397 | O102: 10641046.22
A103: 2013-09-01 | B103: 9078533.98 | C103: 94.9 | D103: 26 | E103: 30 | F103: 1 | G103: 5709.9 | I103: -8181855.141 | J103: 343236.9431 | K103: 670555.4022 | L103: 10517154.46 | M103: -844850.5755 | N103: 6366529.949 | O103: 8870771.035
A104: 2013-10-01 | B104: 8617112.79 | C104: 184 | D104: 2.6 | E104: 31 | F104: 1 | G104: 5655.8 | I104: -8181855.141 | J104: 665496.2859 | K104: 67055.54022 | L104: 10867726.27 | M104: -844850.5755 | N104: 6306208.53 | O104: 8879780.913
A105: 2013-11-01 | B105: 9442071.16 | C105: 492.1 | D105: 0 | E105: 30 | F105: 1 | G105: 5587.4 | I105: -8181855.141 | J105: 1779840.882 | K105: 0 | L105: 10517154.46 | M105: -844850.5755 | N105: 6229942.633 | O105: 9500232.256
A106: 2013-12-01 | B106: 11199465.36 | C106: 675.7 | D106: 0 | E106: 31 | F106: 0 | G106: 5558.7 | I106: -8181855.141 | J106: 2443890.437 | K106: 0 | L106: 10867726.27 | M106: 0 | N106: 6197942.176 | O106: 11327703.74

Sheet Predicted Monthly Data Summ
A1: Date | B1: Year | C1: ReskWh | D1: Predicted Value | E1: Absolute % Error
A2: 2005-04-01 | B2: =YEAR(A2) -> 2005 | C2: 7994353 | D2: 8235687.806 | E2: =ABS(D2-C2)/C2 -> 0.03018815979
A3: 2005-05-01 | B3: 2005 | C3: 8370528 | D3: 8270094.672 | E3: 0.01199844594
A4: 2005-06-01 | B4: 2005 | C4: 10389917 | D4: 11338238.55 | E4: 0.09127325549
A5: 2005-07-01 | B5: 2005 | C5: 12583059 | D5: 12193824.83 | E5: 0.03093319141
A6: 2005-08-01 | B6: 2005 | C6: 11214871 | D6: 11482964.72 | E6: 0.02390519839
A7: 2005-09-01 | B7: 2005 | C7: 8794917 | D7: 8512227.459 | E7: 0.03214237732
A8: 2005-10-01 | B8: 2005 | C8: 8286547 | D8: 8839971.971 | E8: 0.06678595687
A9: 2005-11-01 | B9: 2005 | C9: 9138335 | D9: 8761285.598 | E9: 0.04126018605
A10: 2005-12-01 | B10: 2005 | C10: 10840969 | D10: 11050832.86 | E10: 0.01935840426
A11: 2006-01-01 | B11: 2006 | C11: 10447261 | D11: 10462577.17 | E11: 0.001466046819
A12: 2006-02-01 | B12: 2006 | C12: 9290165 | D12: 9564744.076 | E12: 0.02955588795
A13: 2006-03-01 | B13: 2006 | C13: 9550777 | D13: 9509132.252 | E13: 0.004360351868
A14: 2006-04-01 | B14: 2006 | C14: 7928570 | D14: 8253750.935 | E14: 0.04101381902
A15: 2006-05-01 | B15: 2006 | C15: 8239356 | D15: 8827850.388 | E15: 0.07142480405
A16: 2006-06-01 | B16: 2006 | C16: 9433262 | D16: 9545334.901 | E16: 0.01188060934
A17: 2006-07-01 | B17: 2006 | C17: 11873826 | D17: 12239252.68 | E17: 0.03077581583
A18: 2006-08-01 | B18: 2006 | C18: 10694615 | D18: 10602917.47 | E18: 0.008574177357
A19: 2006-09-01 | B19: 2006 | C19: 8299435 | D19: 8059314.055 | E19: 0.02893220386
A20: 2006-10-01 | B20: 2006 | C20: 8756421 | D20: 8965700.652 | E20: 0.02390013595
A21: 2006-11-01 | B21: 2006 | C21: 9303930 | D21: 8762883.053 | E21: 0.05815251691
A22: 2006-12-01 | B22: 2006 | C22: 10447715 | D22: 10406342.82 | E22: 0.003959926324
A23: 2007-01-01 | B23: 2007 | C23: 11056491 | D23: 10873453.02 | E23: 0.01655479835
A24: 2007-02-01 | B24: 2007 | C24: 10272579 | D24: 10159398.55 | E24: 0.01101772472
A25: 2007-03-01 | B25: 2007 | C25: 9990728 | D25: 9509066.484 | E25: 0.0482108527
A26: 2007-04-01 | B26: 2007 | C26: 8524722 | D26: 8627858.195 | E26: 0.01209848192
A27: 2007-05-01 | B27: 2007 | C27: 8580554 | D27: 8791387.661 | E27: 0.02457110129
A28: 2007-06-01 | B28: 2007 | C28: 9896039 | D28: 10241000.73 | E28: 0.03485856614
A29: 2007-07-01 | B29: 2007 | C29: 11095426 | D29: 10721226.44 | E29: 0.03372556924
A30: 2007-08-01 | B30: 2007 | C30: 11118846 | D30: 11249551.07 | E30: 0.01175527318
A31: 2007-09-01 | B31: 2007 | C31: 9280411 | D31: 8795520.658 | E31: 0.05224880039
A32: 2007-10-01 | B32: 2007 | C32: 8912500 | D32: 9046869.051 | E32: 0.01507647134
A33: 2007-11-01 | B33: 2007 | C33: 9642232 | D33: 9201741.776 | E33: 0.04568342931
A34: 2007-12-01 | B34: =YEAR(A34) -> 2007 | C34: 11291760 | D34: 11054240.34 | E34: =ABS(D34-C34)/C34 -> 0.02103477724
A35: 2008-01-01 | B35: 2008 | C35: 11206263 | D35: 10933164.52 | E35: 0.02437016503
A36: 2008-02-01 | B36: 2008 | C36: 10447561 | D36: 10402998.2 | E36: 0.004265378313
A37: 2008-03-01 | B37: 2008 | C37: 10134324 | D37: 9995822.13 | E37: 0.01366661162
A38: 2008-04-01 | B38: 2008 | C38: 8281971 | D38: 8370219.113 | E38: 0.01065544819
A39: 2008-05-01 | B39: 2008 | C39: 8439719 | D39: 8638250.869 | E39: 0.02352351652
A40: 2008-06-01 | B40: 2008 | C40: 9665506 | D40: 10221068.02 | E40: 0.05747883487
A41: 2008-07-01 | B41: 2008 | C41: 11397420 | D41: 11371981.62 | E41: 0.002231942175
A42: 2008-08-01 | B42: 2008 | C42: 10834750 | D42: 10338296.93 | E42: 0.04582044488
A43: 2008-09-01 | B43: 2008 | C43: 8912187 | D43: 8442484.725 | E43: 0.05270336844
A44: 2008-10-01 | B44: 2008 | C44: 8681291 | D44: 9024532.969 | E44: 0.03953812499
A45: 2008-11-01 | B45: 2008 | C45: 9725130 | D45: 9213229.028 | E45: 0.05263692849
A46: 2008-12-01 | B46: 2008 | C46: 11498791 | D46: 11098074.44 | E46: 0.03484858192
A47: 2009-01-01 | B47: 2009 | C47: 11709609 | D47: 11640456.5 | E47: 0.005905620284
A48: 2009-02-01 | B48: 2009 | C48: 9815166 | D48: 9649293.193 | E48: 0.0168996436
A49: 2009-03-01 | B49: 2009 | C49: 9808765 | D49: 9484242.062 | E49: 0.03308499468
A50: 2009-04-01 | B50: 2009 | C50: 8409247 | D50: 8391468.056 | E50: 0.002114213579
A51: 2009-05-01 | B51: 2009 | C51: 8083578 | D51: 8238833.426 | E51: 0.01920627551
A52: 2009-06-01 | B52: 2009 | C52: 8696876 | D52: 9246007.87 | E52: 0.06314127849
A53: 2009-07-01 | B53: 2009 | C53: 10187430 | D53: 9419976.538 | E53: 0.07533337276
A54: 2009-08-01 | B54: 2009 | C54: 10699164 | D54: 10565514.93 | E54: 0.01249154289
A55: 2009-09-01 | B55: 2009 | C55: 8848220 | D55: 8120826.279 | E55: 0.08220791533
A56: 2009-10-01 | B56: 2009 | C56: 8897476 | D56: 8856514.582 | E56: 0.004603712076
A57: 2009-11-01 | B57: 2009 | C57: 9169954 | D57: 8654160.272 | E57: 0.05624823509
A58: 2009-12-01 | B58: 2009 | C58: 11362006 | D58: 10849635.02 | E58: 0.04509511628
A59: 2010-01-01 | B59: 2010 | C59: 11364520 | D59: 11149631.67 | E59: 0.01890870281
A60: 2010-02-01 | B60: 2010 | C60: 9704226 | D60: 9707436.547 | E60: 0.0003308401235
A61: 2010-03-01 | B61: 2010 | C61: 9302812 | D61: 9222262.633 | E61: 0.008658604157
A62: 2010-04-01 | B62: 2010 | C62: 8105351 | D62: 8121382.038 | E62: 0.001977833859
A63: 2010-05-01 | B63: 2010 | C63: 8972250 | D63: 9032294.697 | E63: 0.006692267456
A64: 2010-06-01 | B64: 2010 | C64: 10612346 | D64: 9879784.485 | E64: 0.06902917745
A65: 2010-07-01 | B65: 2010 | C65: 12697627 | D65: 12134597.03 | E65: 0.04434135376
A66: 2010-08-01 | B66: =YEAR(A66) -> 2010 | C66: 11860873 | D66: 11983127.45 | E66: =ABS(D66-C66)/C66 -> 0.01030737362
A67: 2010-09-01 | B67: 2010 | C67: 8944230 | D67: 8510342.501 | E67: 0.04851032445
A68: 2010-10-01 | B68: 2010 | C68: 8467380 | D68: 8737831.677 | E68: 0.03194042036
A69: 2010-11-01 | B69: 2010 | C69: 9247991 | D69: 8950941.642 | E69: 0.03212042029
A70: 2010-12-01 | B70: 2010 | C70: 11100789 | D70: 11234395.64 | E70: 0.01203577853
A71: 2011-01-01 | B71: 2011 | C71: 11478543 | D71: 11502994.09 | E71: 0.002130156177
A72: 2011-02-01 | B72: 2011 | C72: 9828747 | D72: 9982980.04 | E72: 0.01569203482
A73: 2011-03-01 | B73: 2011 | C73: 9870149 | D73: 9896974.002 | E73: 0.002717791031
A74: 2011-04-01 | B74: 2011 | C74: 8634932 | D74: 8614787.63 | E74: 0.002332892741
A75: 2011-05-01 | B75: 2011 | C75: 8604284 | D75: 8774068.283 | E75: 0.0197325289
A76: 2011-06-01 | B76: 2011 | C76: 9863266 | D76: 9582292.891 | E76: 0.02848682262
A77: 2011-07-01 | B77: 2011 | C77: 13084587 | D77: 13071875.57 | E77: 0.0009714810313
A78: 2011-08-01 | B78: 2011 | C78: 11708342 | D78: 11124729.53 | E78: 0.04984586825
A79: 2011-09-01 | B79: 2011 | C79: 8861720 | D79: 8765609.41 | E79: 0.01084559089
A80: 2011-10-01 | B80: 2011 | C80: 8436122 | D80: 8868181.022 | E80: 0.05121535964
A81: 2011-11-01 | B81: 2011 | C81: 8858646 | D81: 8832843.906 | E81: 0.002912645378
A82: 2011-12-01 | B82: 2011 | C82: 10356171 | D82: 10714861.29 | E82: 0.03463541594
A83: 2012-01-01 | B83: 2012 | C83: 10568683 | D83: 11013571.54 | E83: 0.042094984
A84: 2012-02-01 | B84: 2012 | C84: 9506375 | D84: 9930116.701 | E84: 0.04457447781
A85: 2012-03-01 | B85: 2012 | C85: 8893020 | D85: 9020282.034 | E85: 0.01431032805
A86: 2012-04-01 | B86: 2012 | C86: 7973891 | D86: 8678592.241 | E86: 0.08837608147
A87: 2012-05-01 | B87: 2012 | C87: 8521416 | D87: 8958146.662 | E87: 0.05125094955
A88: 2012-06-01 | B88: 2012 | C88: 10787976 | D88: 10717574.46 | E88: 0.006525926336
A89: 2012-07-01 | B89: 2012 | C89: 13043099 | D89: 13100322.6 | E89: 0.00438726996
A90: 2012-08-01 | B90: 2012 | C90: 11413857 | D90: 11086490.55 | E90: 0.02868149179
A91: 2012-09-01 | B91: 2012 | C91: 8938541 | D91: 8855935.198 | E91: 0.009241530851
A92: 2012-10-01 | B92: 2012 | C92: 8595671 | D92: 8991463.932 | E92: 0.04604561206
A93: 2012-11-01 | B93: 2012 | C93: 9181838 | D93: 9173559.804 | E93: 0.0009015837346
A94: 2012-12-01 | B94: 2012 | C94: 10491347 | D94: 10775910.3 | E94: 0.0271236193
A95: 2013-01-01 | B95: 2013 | C95: 10899532.4 | D95: 11142210.96 | E95: 0.02226504309
A96: 2013-02-01 | B96: 2013 | C96: 9715342.56 | D96: 10031849.36 | E96: 0.03257803795
A97: 2013-03-01 | B97: 2013 | C97: 9989140.57 | D97: 9920260.536 | E97: 0.006895491518
A98: 2013-04-01 | B98: =YEAR(A98) -> 2013 | C98: 8576997.38 | D98: 8818110.63 | E98: =ABS(D98-C98)/C98 -> 0.02811161523
A99: 2013-05-01 | B99: 2013 | C99: 8413381.62 | D99: 9118078.644 | E99: 0.08375907043
A100: 2013-06-01 | B100: 2013 | C100: 9697931.85 | D100: 10107622.74 | E100: 0.04224518115
A101: 2013-07-01 | B101: 2013 | C101: 11621703.18 | D101: 11891010 | E101: 0.02317274982
A102: 2013-08-01 | B102: 2013 | C102: 10683811.08 | D102: 10641046.22 | E102: 0.004002772062
A103: 2013-09-01 | B103: 2013 | C103: 9078533.98 | D103: 8870771.035 | E103: 0.02288507649
A104: 2013-10-01 | B104: 2013 | C104: 8617112.79 | D104: 8879780.913 | E104: 0.03048214975
A105: 2013-11-01 | B105: 2013 | C105: 9442071.16 | D105: 9500232.256 | E105: 0.006159781537
A106: 2013-12-01 | B106: 2013 | C106: 11199465.36 | D106: 11327703.74 | E106: 0.01145040232
E107: =AVERAGE(E2:E106) -> 0.02810134755

Sheet PredictedAnnualDataSumm
A2: Annual Predicted vs. Actual ReskWh
B3: ReskWh | C3: Predicted Value | D3: Absolute % Error
A4: 2005 | B4: 87613496 | C4: 88685128.46 | D4: 0.01223136283
A5: 2006 | B5: 114265333 | C5: 115199800.5 | D5: 0.008178048715
A6: 2007 | B6: 119662288 | C6: 118271314 | D6: 0.0116241636
A7: 2008 | B7: 119224913 | C7: 118050122.6 | D7: 0.009853565
A8: 2009 | B8: 115687491 | C8: 113116928.7 | D8: 0.02221988092
A9: 2010 | B9: 120380395 | C9: 118664028 | D9: 0.01425786147
A10: 2011 | B10: 119585509 | C10: 119732197.7 | D10: 0.00122664246
A11: 2012 | B11: 117915714 | C11: 120301966 | D11: 0.02023692982
A12: 2013 | B12: 117935023.9 | C12: 120248677 | D12: 0.01961803224
C13: Mean Absolute Percentage Error (Annual) | D13: =AVERAGE(D4:D12) -> 0.0132718319
C14: Mean Absolute Percentage Error (Monthly) | D14: 0.02810134755

Sheet PredictedAnnualDataSumm2
B3: ReskWh | C3: Predicted Value
A4: 2005 | B4: 87613496 | C4: 88685128.46
A5: 2006 | B5: 114265333 | C5: 115199800.5
A6: 2007 | B6: 119662288 | C6: 118271314
A7: 2008 | B7: 119224913 | C7: 118050122.6
A8: 2009 | B8: 115687491 | C8: 113116928.7
A9: 2010 | B9: 120380395 | C9: 118664028
A10: 2011 | B10: 119585509 | C10: 119732197.7
A11: 2012 | B11: 117915714 | C11: 120301966
A12: 2013 | B12: 117935023.9 | C12: 120248677

Sheet Normalized Monthly Data
A1: Date | B1: ReskWh | C1: HDD_Lond | D1: CDD_Lond | E1: MonthDays | F1: Shoulder1 | G1: FTE_Ont | I1: Const | J1: HDD_Lond | K1: CDD_Lond | L1: MonthDays | M1: Shoulder1 | N1: FTE_Ont | O1: Normalized Value
A2: 2005-04-01 | B2: 7994353 | C2: 312.88 | D2: 0.32 | E2: 30 | F2: 1 | G2: 5043 | I2: =const -> -8181855.141 | J2: =HDD_Lond*C2 -> 1131633.032 | K2: =CDD_Lond*D2 -> 8252.989566 | L2: =MonthDays*E2 -> 10517154.46 | M2: =Shoulder1*F2 -> -844850.5755 | N2: =FTE_Ont*G2 -> 5622937.448 | O2: =SUM(I2:N2) -> 8253272.211
A3: 2005-05-01 | B3: 8370528 | C3: 145.96 | D3: 16.98 | E3: 31 | F3: 1 | G3: 5122.1 | I3: -8181855.141 | J3: 527912.1625 | K3: 437924.2589 | L3: 10867726.27 | M3: -844850.5755 | N3: 5711133.829 | O3: 8517990.807
A4: 2005-06-01 | B4: 10389917 | C4: 30.95 | D4: 59.64 | E4: 30 | F4: 0 | G4: 5236.3 | I4: -8181855.141 | J4: 111940.8155 | K4: 1538150.93 | L4: 10517154.46 | M4: 0 | N4: 5838466.658 | O4: 9823857.721
A5: 2005-07-01 | B5: 12583059 | C5: 6 | D5: 109.95 | E5: 31 | F5: 0 | G5: 5342 | I5: -8181855.141 | J5: 21700.96584 | K5: 2835675.634 | L5: 10867726.27 | M5: 0 | N5: 5956322 | O5: 11499569.73
A6: 2005-08-01 | B6: 11214871 | C6: 11.72 | D6: 76.85 | E6: 31 | F6: 0 | G6: 5416.4 | I6: -8181855.141 | J6: 42389.21995 | K6: 1982007.025 | L6: 10867726.27 | M6: 0 | N6: 6039277.889 | O6: 10749545.27
A7: 2005-09-01 | B7: 8794917 | C7: 72.85 | D7: 24.35 | E7: 30 | F7: 1 | G7: 5396 | I7: -8181855.141 | J7: 263485.8936 | K7: 628000.9248 | L7: 10517154.46 | M7: -844850.5755 | N7: 6016531.919 | O7: 8398467.479
A8: 2005-10-01 | B8: 8286547 | C8: 241.64 | D8: 3.42 | E8: 31 | F8: 1 | G8: 5335.3 | I8: -8181855.141 | J8: 873970.2311 | K8: 88203.82599 | L8: 10867726.27 | M8: -844850.5755 | N8: 5948851.51 | O8: 8752046.123
A9: 2005-11-01 | B9: 9138335 | C9: 414.34 | D9: 0 | E9: 30 | F9: 1 | G9: 5247.1 | I9: -8181855.141 | J9: 1498596.365 | K9: 0 | L9: 10517154.46 | M9: -844850.5755 | N9: 5850508.642 | O9: 8839553.748
A10: 2005-12-01 | B10: 10840969 | C10: 630.9 | D10: 0 | E10: 31 | F10: 0 | G10: 5224.1 | I10: -8181855.141 | J10: 2281856.559 | K10: 0 | L10: 10867726.27 | M10: 0 | N10: 5824863.677 | O10: 10792591.37
A11: 2006-01-01 | B11: 10447261 | C11: 716.23 | D11: 0 | E11: 31 | F11: 0 | G11: 5175.3 | I11: -8181855.141 | J11: 2590480.461 | K11: 0 | L11: 10867726.27 | M11: 0 | N11: 5770451.75 | O11: 11046803.34
A12: 2006-02-01 | B12: 9290165 | C12: 650.25 | D12: 0 | E12: 28 | F12: 0 | G12: 5136.2 | I12: -8181855.141 | J12: 2351842.173 | K12: 0 | L12: 9816010.827 | M12: 0 | N12: 5726855.308 | O12: 9712853.168
A13: 2006-03-01 | B13: 9550777 | C13: 533.91 | D13: 0.22 | E13: 31 | F13: 1 | G13: 5107.1 | I13: -8181855.141 | J13: 1931060.446 | K13: 5673.930327 | L13: 10867726.27 | M13: -844850.5755 | N13: 5694408.852 | O13: 9472163.784
A14: 2006-04-01 | B14: 7928570 | C14: 312.88 | D14: 0.32 | E14: 30 | F14: 1 | G14: 5137.7 | I14: -8181855.141 | J14: 1131633.032 | K14: 8252.989566 | L14: 10517154.46 | M14: -844850.5755 | N14: 5728527.806 | O14: 8358862.569
A15: 2006-05-01 | B15: 8239356 | C15: 145.96 | D15: 16.98 | E15: 31 | F15: 1 | G15: 5243.8 | I15: -8181855.141 | J15: 527912.1625 | K15: 437924.2589 | L15: 10867726.27 | M15: -844850.5755 | N15: 5846829.147 | O15: 8653686.125
A16: 2006-06-01 | B16: 9433262 | C16: 30.95 | D16: 59.64 | E16: 30 | F16: 0 | G16: 5352.8 | I16: -8181855.141 | J16: 111940.8155 | K16: 1538150.93 | L16: 10517154.46 | M16: 0 | N16: 5968363.984 | O16: 9953755.046
A17: 2006-07-01 | B17: 11873826 | C17: 6 | D17: 109.95 | E17: 31 | F17: 0 | G17: 5464.8 | I17: -8181855.141 | J17: 21700.96584 | K17: 2835675.634 | L17: 10867726.27 | M17: 0 | N17: 6093243.816 | O17: 11636491.55
A18: 2006-08-01 | B18: 10694615 | C18: 11.72 | D18: 76.85 | E18: 31 | F18: 0 | G18: 5505.8 | I18: -8181855.141 | J18: 42389.21995 | K18: 1982007.025 | L18: 10867726.27 | M18: 0 | N18: 6138958.755 | O18: 10849226.13
A19: 2006-09-01 | B19: 8299435 | C19: 72.85 | D19: 24.35 | E19: 30 | F19: 1 | G19: 5456.2 | I19: -8181855.141 | J19: 263485.8936 | K19: 628000.9248 | L19: 10517154.46 | M19: -844850.5755 | N19: 6083654.829 | O19: 8465590.388
A20: 2006-10-01 | B20: 8756421 | C20: 241.64 | D20: 3.42 | E20: 31 | F20: 1 | G20: 5374.9 | I20: -8181855.141 | J20: 873970.2311 | K20: 88203.82599 | L20: 10867726.27 | M20: -844850.5755 | N20: 5993005.451 | O20: 8796200.064
A21: 2006-11-01 | B21: 9303930 | C21: 414.34 | D21: 0 | E21: 30 | F21: 1 | G21: 5278.7 | I21: -8181855.141 | J21: 1498596.365 | K21: 0 | L21: 10517154.46 | M21: -844850.5755 | N21: 5885742.595 | O21: 8874787.701
A22: 2006-12-01 | B22: 10447715 | C22: 630.9 | D22: 0 | E22: 31 | F22: 0 | G22: 5263.7 | I22: -8181855.141 | J22: 2281856.559 | K22: 0 | L22: 10867726.27 | M22: 0 | N22: 5869017.617 | O22: 10836745.31
A23: 2007-01-01 | B23: 11056491 | C23: 716.23 | D23: 0 | E23: 31 | F23: 0 | G23: 5216.5 | I23: -8181855.141 | J23: 2590480.461 | K23: 0 | L23: 10867726.27 | M23: 0 | N23: 5816389.688 | O23: 11092741.28
A24: 2007-02-01 | B24: 10272579 | C24: 650.25 | D24: 0 | E24: 28 | F24: 0 | G24: 5184.9 | I24: -8181855.141 | J24: 2351842.173 | K24: 0 | L24: 9816010.827 | M24: 0 | N24: 5781155.735 | O24: 9767153.595
A25: 2007-03-01 | B25: 9990728 | C25: 533.91 | D25: 0.22 | E25: 31 | F25: 1 | G25: 5167.7 | I25: -8181855.141 | J25: 1931060.446 | K25: 5673.930327 | L25: 10867726.27 | M25: -844850.5755 | N25: 5761977.761 | O25: 9539732.693
A26: 2007-04-01 | B26: 8524722 | C26: 312.88 | D26: 0.32 | E26: 30 | F26: 1 | G26: 5197.5 | I26: -8181855.141 | J26: 1131633.032 | K26: 8252.989566 | L26: 10517154.46 | M26: -844850.5755 | N26: 5795204.716 | O26: 8425539.479
A27: 2007-05-01 | B27: 8580554 | C27: 145.96 | D27: 16.98 | E27: 31 | F27: 1 | G27: 5280.6 | I27: -8181855.141 | J27: 527912.1625 | K27: 437924.2589 | L27: 10867726.27 | M27: -844850.5755 | N27: 5887861.092 | O27: 8694718.07
A28: 2007-06-01 | B28: 9896039 | C28: 30.95 | D28: 59.64 | E28: 30 | F28: 0 | G28: 5391.3 | I28: -8181855.141 | J28: 111940.8155 | K28: 1538150.93 | L28: 10517154.46 | M28: 0 | N28: 6011291.426 | O28: 9996682.489
A29: 2007-07-01 | B29: 11095426 | C29: 6 | D29: 109.95 | E29: 31 | F29: 0 | G29: 5513.8 | I29: -8181855.141 | J29: 21700.96584 | K29: 2835675.634 | L29: 10867726.27 | M29: 0 | N29: 6147878.743 | O29: 11691126.47
A30: 2007-08-01 | B30: 11118846 | C30: 11.72 | D30: 76.85 | E30: 31 | F30: 0 | G30: 5582.2 | I30: -8181855.141 | J30: 42389.21995 | K30: 1982007.025 | L30: 10867726.27 | M30: 0 | N30: 6224144.64 | O30: 10934412.02
A31: 2007-09-01 | B31: 9280411 | C31: 72.85 | D31: 24.35 | E31: 30 | F31: 1 | G31: 5544.2 | I31: -8181855.141 | J31: 263485.8936 | K31: 628000.9248 | L31: 10517154.46 | M31: -844850.5755 | N31: 6181774.697 | O31: 8563710.257
A32: 2007-10-01 | B32: 8912500 | C32: 241.64 | D32: 3.42 | E32: 31 | F32: 1 | G32: 5479.1 | I32: -8181855.141 | J32: 873970.2311 | K32: 88203.82599 | L32: 10867726.27 | M32: -844850.5755 | N32: 6109188.295 | O32: 8912382.908
A33: 2007-11-01 | B33: 9642232 | C33: 414.34 | D33: 0 | E33: 30 | F33: 1 | G33: 5395.6 | I33: -8181855.141 | J33: 1498596.365 | K33: 0 | L33: 10517154.46 | M33: -844850.5755 | N33: 6016085.92 | O33: 9005131.025
A34: 2007-12-01 | B34: 11291760 | C34: 630.9 | D34: 0 | E34: 31 | F34: 0 | G34: 5374.1 | I34: =const -> -8181855.141 | J34: =HDD_Lond*C34 -> 2281856.559 | K34: =CDD_Lond*D34 -> 0 | L34: =MonthDays*E34 -> 10867726.27 | M34: =Shoulder1*F34 -> 0 | N34: =FTE_Ont*G34 -> 5992113.452 | O34: =SUM(I34:N34) -> 10959841.14
A35: 2008-01-01 | B35: 11206263 | C35: 716.23 | D35: 0 | E35: 31 | F35: 0 | G35: 5323.9 | I35: -8181855.141 | J35: 2590480.461 | K35: 0 | L35: 10867726.27 | M35: 0 | N35: 5936140.527 | O35: 11212492.12
A36: 2008-02-01 | B36: 10447561 | C36: 650.25 | D36: 0 | E36: 29 | F36: 0 | G36: 5303.7 | I36: -8181855.141 | J36: 2351842.173 | K36: 0 | L36: 10166582.64 | M36: 0 | N36: 5913617.557 | O36: 10250187.23
A37: 2008-03-01 | B37: 10134324 | C37: 533.91 | D37: 0.22 | E37: 31 | F37: 1 | G37: 5278.9 | I37: -8181855.141 | J37: 1931060.446 | K37: 5673.930327 | L37: 10867726.27 | M37: -844850.5755 | N37: 5885965.595 | O37: 9663720.527
A38: 2008-04-01 | B38: 8281971 | C38: 312.88 | D38: 0.32 | E38: 30 | F38: 1 | G38: 5310.6 | I38: -8181855.141 | J38: 1131633.032 | K38: 8252.989566 | L38: 10517154.46 | M38: -844850.5755 | N38: 5921311.047 | O38: 8551645.81
A39: 2008-05-01 | B39: 8439719 | C39: 145.96 | D39: 16.98 | E39: 31 | F39: 1 | G39: 5370.3 | I39: -8181855.141 | J39: 527912.1625 | K39: 437924.2589 | L39: 10867726.27 | M39: -844850.5755 | N39: 5987876.458 | O39: 8794733.435
A40: 2008-06-01 | B40: 9665506 | C40: 30.95 | D40: 59.64 | E40: 30 | F40: 0 | G40: 5458.4 | I40: -8181855.141 | J40: 111940.8155 | K40: 1538150.93 | L40: 10517154.46 | M40: 0 | N40: 6086107.826 | O40: 10071498.89
A41: 2008-07-01 | B41: 11397420 | C41: 6 | D41: 109.95 | E41: 31 | F41: 0 | G41: 5533.6 | I41: -8181855.141 | J41: 21700.96584 | K41: 2835675.634 | L41: 10867726.27 | M41: 0 | N41: 6169955.713 | O41: 11713203.44
A42: 2008-08-01 | B42: 10834750 | C42: 11.72 | D42: 76.85 | E42: 31 | F42: 0 | G42: 5592.4 | I42: -8181855.141 | J42: 42389.21995 | K42: 1982007.025 | L42: 10867726.27 | M42: 0 | N42: 6235517.625 | O42: 10945785
A43: 2008-09-01 | B43: 8912187 | C43: 72.85 | D43: 24.35 | E43: 30 | F43: 1 | G43: 5556.1 | I43: -8181855.141 | J43: 263485.8936 | K43: 628000.9248 | L43: 10517154.46 | M43: -844850.5755 | N43: 6195043.179 | O43: 8576978.739
A44: 2008-10-01 | B44: 8681291 | C44: 241.64 | D44: 3.42 | E44: 31 | F44: 1 | G44: 5512.3 | I44: -8181855.141 | J44: 873970.2311 | K44: 88203.82599 | L44: 10867726.27 | M44: -844850.5755 | N44: 6146206.245 | O44: 8949400.858
A45: 2008-11-01 | B45: 9725130 | C45: 414.34 | D45: 0 | E45: 30 | F45: 1 | G45: 5407.2 | I45: -8181855.141 | J45: 1498596.365 | K45: 0 | L45: 10517154.46 | M45: -844850.5755 | N45: 6029019.902 | O45: 9018065.008
A46: 2008-12-01 | B46: 11498791 | C46: 630.9 | D46: 0 | E46: 31 | F46: 0 | G46: 5368 | I46: -8181855.141 | J46: 2281856.559 | K46: 0 | L46: 10867726.27 | M46: 0 | N46: 5985311.961 | O46: 10953039.65
A47: 2009-01-01 | B47: 11709609 | C47: 716.23 | D47: 0 | E47: 31 | F47: 0 | G47: 5275.1 | I47: -8181855.141 | J47: 2590480.461 | K47: 0 | L47: 10867726.27 | M47: 0 | N47: 5881728.6 | O47: 11158080.19
A48: 2009-02-01 | B48: 9815166 | C48: 650.25 | D48: 0 | E48: 28 | F48: 0 | G48: 5201 | I48: -8181855.141 | J48: 2351842.173 | K48: 0 | L48: 9816010.827 | M48: 0 | N48: 5799107.211 | O48: 9785105.071
A49: 2009-03-01 | B49: 9808765 | C49: 533.91 | D49: 0.22 | E49: 31 | F49: 1 | G49: 5125 | I49: -8181855.141 | J49: 1931060.446 | K49: 5673.930327 | L49: 10867726.27 | M49: -844850.5755 | N49: 5714367.325 | O49: 9492122.257
A50: 2009-04-01 | B50: 8409247 | C50: 312.88 | D50: 0.32 | E50: 30 | F50: 1 | G50: 5119.4 | I50: -8181855.141 | J50: 1131633.032 | K50: 8252.989566 | L50: 10517154.46 | M50: -844850.5755 | N50: 5708123.333 | O50: 8338458.096
A51: 2009-05-01 | B51: 8083578 | C51: 145.96 | D51: 16.98 | E51: 31 | F51: 1 | G51: 5157.3 | I51: -8181855.141 | J51: 527912.1625 | K51: 437924.2589 | L51: 10867726.27 | M51: -844850.5755 | N51: 5750381.777 | O51: 8557238.754
A52: 2009-06-01 | B52: 8696876 | C52: 30.95 | D52: 59.64 | E52: 30 | F52: 0 | G52: 5215.6 | I52: -8181855.141 | J52: 111940.8155 | K52: 1538150.93 | L52: 10517154.46 | M52: 0 | N52: 5815386.189 | O52: 9800777.252
A53: 2009-07-01 | B53: 10187430 | C53: 6 | D53: 109.95 | E53: 31 | F53: 0 | G53: 5294 | I53: -8181855.141 | J53: 21700.96584 | K53: 2835675.634 | L53: 10867726.27 | M53: 0 | N53: 5902802.072 | O53: 11446049.8
A54: 2009-08-01 | B54: 10699164 | C54: 11.72 | D54: 76.85 | E54: 31 | F54: 0 | G54: 5345.8 | I54: -8181855.141 | J54: 42389.21995 | K54: 1982007.025 | L54: 10867726.27 | M54: 0 | N54: 5960558.994 | O54: 10670826.37
A55: 2009-09-01 | B55: 8848220 | C55: 72.85 | D55: 24.35 | E55: 30 | F55: 1 | G55: 5347.8 | I55: -8181855.141 | J55: 263485.8936 | K55: 628000.9248 | L55: 10517154.46 | M55: -844850.5755 | N55: 5962788.991 | O55: 8344724.551
A56: 2009-10-01 | B56: 8897476 | C56: 241.64 | D56: 3.42 | E56: 31 | F56: 1 | G56: 5314.9 | I56: -8181855.141 | J56: 873970.2311 | K56: 88203.82599 | L56: 10867726.27 | M56: -844850.5755 | N56: 5926105.541 | O56: 8729300.154
A57: 2009-11-01 | B57: 9169954 | C57: 414.34 | D57: 0 | E57: 30 | F57: 1 | G57: 5267.8 | I57: -8181855.141 | J57: 1498596.365 | K57: 0 | L57: 10517154.46 | M57: -844850.5755 | N57: 5873589.111 | O57: 8862634.217
A58: 2009-12-01 | B58: 11362006 | C58: 630.9 | D58: 0 | E58: 31 | F58: 0 | G58: 5254.5 | I58: -8181855.141 | J58: 2281856.559 | K58: 0 | L58: 10867726.27 | M58: 0 | N58: 5858759.631 | O58: 10826487.32
A59: 2010-01-01 | B59: 11364520 | C59: 716.23 | D59: 0 | E59: 31 | F59: 0 | G59: 5212.8 | I59: -8181855.141 | J59: 2590480.461 | K59: 0 | L59: 10867726.27 | M59: 0 | N59: 5812264.194 | O59: 11088615.79
A60: 2010-02-01 | B60: 9704226 | C60: 650.25 | D60: 0 | E60: 28 | F60: 0 | G60: 5186 | I60: -8181855.141 | J60: 2351842.173 | K60: 0 | L60: 9816010.827 | M60: 0 | N60: 5782382.234 | O60: 9768380.093
A61: 2010-03-01 | B61: 9302812 | C61: 533.91 | D61: 0.22 | E61: 31 | F61: 1 | G61: 5159.6 | I61: -8181855.141 | J61: 1931060.446 | K61: 5673.930327 | L61: 10867726.27 | M61: -844850.5755 | N61: 5752946.273 | O61: 9530701.205
A62: 2010-04-01 | B62: 8105351 | C62: 312.88 | D62: 0.32 | E62: 30 | F62: 1 | G62: 5180.2 | I62: -8181855.141 | J62: 1131633.032 | K62: 8252.989566 | L62: 10517154.46 | M62: -844850.5755 | N62: 5775915.242 | O62: 8406250.005
A63: 2010-05-01 | B63: 8972250 | C63: 145.96 | D63: 16.98 | E63: 31 | F63: 1 | G63: 5249.5 | I63: -8181855.141 | J63: 527912.1625 | K63: 437924.2589 | L63: 10867726.27 | M63: -844850.5755 | N63: 5853184.639 | O63: 8660041.616
A64: 2010-06-01 | B64: 10612346 | C64: 30.95 | D64: 59.64 | E64: 30 | F64: 0 | G64: 5359.8 | I64: -8181855.141 | J64: 111940.8155 | K64: 1538150.93 | L64: 10517154.46 | M64: 0 | N64: 5976168.973 | O64: 9961560.036
A65: 2010-07-01 | B65: 12697627 | C65: 6 | D65: 109.95 | E65: 31 | F65: 0 | G65: 5456 | I65: -8181855.141 | J65: 21700.96584 | K65: 2835675.634 | L65: 10867726.27 | M65: 0 | N65: 6083431.829 | O65: 11626679.56
A66: 2010-08-01 | B66: 11860873 | C66: 11.72 | D66: 76.85 | E66: 31 | F66: 0 | G66: 5503.9 | I66: =const -> -8181855.141 | J66: =HDD_Lond*C66 -> 42389.21995 | K66: =CDD_Lond*D66 -> 1982007.025 | L66: =MonthDays*E66 -> 10867726.27 | M66: =Shoulder1*F66 -> 0 | N66: =FTE_Ont*G66 -> 6136840.258 | O66: =SUM(I66:N66) -> 10847107.63
A67: 2010-09-01 | B67: 8944230 | C67: 72.85 | D67: 24.35 | E67: 30 | F67: 1 | G67: 5453.3 | I67: -8181855.141 | J67: 263485.8936 | K67: 628000.9248 | L67: 10517154.46 | M67: -844850.5755 | N67: 6080421.333 | O67: 8462356.893
A68: 2010-10-01 | B68: 8467380 | C68: 241.64 | D68: 3.42 | E68: 31 | F68: 1 | G68: 5408.6 | I68: -8181855.141 | J68: 873970.2311 | K68: 88203.82599 | L68: 10867726.27 | M68: -844850.5755 | N68: 6030580.9 | O68: 8833775.514
A69: 2010-11-01 | B69: 9247991 | C69: 414.34 | D69: 0 | E69: 30 | F69: 1 | G69: 5349.4 | I69: -8181855.141 | J69: 1498596.365 | K69: 0 | L69: 10517154.46 | M69: -844850.5755 | N69: 5964572.989 | O69: 8953618.095
A70: 2010-12-01 | B70: 11100789 | C70: 630.9 | D70: 0 | E70: 31 | F70: 0 | G70: 5352.4 | I70: -8181855.141 | J70: 2281856.559 | K70: 0 | L70: 10867726.27 | M70: 0 | N70: 5967917.985 | O70: 10935645.67
A71: 2011-01-01 | B71: 11478543 | C71: 716.23 | D71: 0 | E71: 31 | F71: 0 | G71: 5316.6 | I71: -8181855.141 | J71: 2590480.461 | K71: 0 | L71: 10867726.27 | M71: 0 | N71: 5928001.038 | O71: 11204352.63
A72: 2011-02-01 | B72: 9828747 | C72: 650.25 | D72: 0 | E72: 28 | F72: 0 | G72: 5289.1 | I72: -8181855.141 | J72: 2351842.173 | K72: 0 | L72: 9816010.827 | M72: 0 | N72: 5897338.579 | O72: 9883336.439
A73: 2011-03-01 | B73: 9870149 | C73: 533.91 | D73: 0.22 | E73: 31 | F73: 1 | G73: 5280.1 | I73: -8181855.141 | J73: 1931060.446 | K73: 5673.930327 | L73: 10867726.27 | M73: -844850.5755 | N73: 5887303.593 | O73: 9665058.525
A74: 2011-04-01 | B74: 8634932 | C74: 312.88 | D74: 0.32 | E74: 30 | F74: 1 | G74: 5317.8 | I74: -8181855.141 | J74: 1131633.032 | K74: 8252.989566 | L74: 10517154.46 | M74: -844850.5755 | N74: 5929339.036 | O74: 8559673.799
A75: 2011-05-01 | B75: 8604284 | C75: 145.96 | D75: 16.98 | E75: 31 | F75: 1 | G75: 5405.5 | I75: -8181855.141 | J75: 527912.1625 | K75: 437924.2589 | L75: 10867726.27 | M75: -844850.5755 | N75: 6027124.405 | O75: 8833981.383
A76: 2011-06-01 | B76: 9863266 | C76: 30.95 | D76: 59.64 | E76: 30 | F76: 0 | G76: 5496 | I76: -8181855.141 | J76: 111940.8155 | K76: 1538150.93 | L76: 10517154.46 | M76: 0 | N76: 6128031.769 | O76: 10113422.83
A77: 2011-07-01 | B77: 13084587 | C77: 6 | D77: 109.95 | E77: 31 | F77: 0 | G77: 5593.1 | I77: -8181855.141 | J77: 21700.96584 | K77: 2835675.634 | L77: 10867726.27 | M77: 0 | N77: 6236298.124 | O77: 11779545.86
A78: 2011-08-01 | B78: 11708342 | C78: 11.72 | D78: 76.85 | E78: 31 | F78: 0 | G78: 5646.1 | I78: -8181855.141 | J78: 42389.21995 | K78: 1982007.025 | L78: 10867726.27 | M78: 0 | N78: 6295393.045 | O78: 11005660.42
A79: 2011-09-01 | B79: 8861720 | C79: 72.85 | D79: 24.35 | E79: 30 | F79: 1 | G79: 5620.8 | I79: -8181855.141 | J79: 263485.8936 | K79: 628000.9248 | L79: 10517154.46 | M79: -844850.5755 | N79: 6267183.583 | O79: 8649119.142
A80: 2011-10-01 | B80: 8436122 | C80: 241.64 | D80: 3.42 | E80: 31 | F80: 1 | G80: 5541.4 | I80: -8181855.141 | J80: 873970.2311 | K80: 88203.82599 | L80: 10867726.27 | M80: -844850.5755 | N80: 6178652.701 | O80: 8981847.315
A81: 2011-11-01 | B81: 8858646 | C81: 414.34 | D81: 0 | E81: 30 | F81: 1 | G81: 5456.6 | I81: -8181855.141 | J81: 1498596.365 | K81: 0 | L81: 10517154.46 | M81: -844850.5755 | N81: 6084100.828 | O81: 9073145.934
A82: 2011-12-01 | B82: 10356171 | C82: 630.9 | D82: 0 | E82: 31 | F82: 0 | G82: 5422 | I82: -8181855.141 | J82: 2281856.559 | K82: 0 | L82: 10867726.27 | M82: 0 | N82: 6045521.88 | O82: 11013249.57
A83: 2012-01-01 | B83: 10568683 | C83: 716.23 | D83: 0 | E83: 31 | F83: 0 | G83: 5377.2 | I83: -8181855.141 | J83: 2590480.461 | K83: 0 | L83: 10867726.27 | M83: 0 | N83: 5995569.947 | O83: 11271921.54
A84: 2012-02-01 | B84: 9506375 | C84: 650.25 | D84: 0 | E84: 29 | F84: 0 | G84: 5332.1 | I84: -8181855.141 | J84: 2351842.173 | K84: 0 | L84: 10166582.64 | M84: 0 | N84: 5945283.515 | O84: 10281853.19
A85: 2012-03-01 | B85: 8893020 | C85: 533.91 | D85: 0.22 | E85: 31 | F85: 1 | G85: 5313.9 | I85: -8181855.141 | J85: 1931060.446 | K85: 5673.930327 | L85: 10867726.27 | M85: -844850.5755 | N85: 5924990.542 | O85: 9702745.474
A86: 2012-04-01 | B86: 7973891 | C86: 312.88 | D86: 0.32 | E86: 30 | F86: 1 | G86: 5361.4 | I86: -8181855.141 | J86: 1131633.032 | K86: 8252.989566 | L86: 10517154.46 | M86: -844850.5755 | N86: 5977952.971 | O86: 8608287.734
A87: 2012-05-01 | B87: 8521416 | C87: 145.96 | D87: 16.98 | E87: 31 | F87: 1 | G87: 5441 | I87: -8181855.141 | J87: 527912.1625 | K87: 437924.2589 | L87: 10867726.27 | M87: -844850.5755 | N87: 6066706.852 | O87: 8873563.829
A88: 2012-06-01 | B88: 10787976 | C88: 30.95 | D88: 59.64 | E88: 30 | F88: 0 | G88: 5536.5 | I88: -8181855.141 | J88: 111940.8155 | K88: 1538150.93 | L88: 10517154.46 | M88: 0 | N88: 6173189.209 | O88: 10158580.27
A89: 2012-07-01 | B89: 13043099 | C89: 6 | D89: 109.95 | E89: 31 | F89: 0 | G89: 5616.3 | I89: -8181855.141 | J89: 21700.96584 | K89: 2835675.634 | L89: 10867726.27 | M89: 0 | N89: 6262166.089 | O89: 11805413.82
A90: 2012-08-01 | B90: 11413857 | C90: 11.72 | D90: 76.85 | E90: 31 | F90: 0 | G90: 5667.7 | I90: -8181855.141 | J90: 42389.21995 | K90: 1982007.025 | L90: 10867726.27 | M90: 0 | N90: 6319477.012 | O90: 11029744.39
A91: 2012-09-01 | B91: 8938541 | C91: 72.85 | D91: 24.35 | E91: 30 | F91: 1 | G91: 5629.7 | I91: -8181855.141 | J91: 263485.8936 | K91: 628000.9248 | L91: 10517154.46 | M91: -844850.5755 | N91: 6277107.069 | O91: 8659042.629
A92: 2012-10-01 | B92: 8595671 | C92: 241.64 | D92: 3.42 | E92: 31 | F92: 1 | G92: 5584.2 | I92: -8181855.141 | J92: 873970.2311 | K92: 88203.82599 | L92: 10867726.27 | M92: -844850.5755 | N92: 6226374.637 | O92: 9029569.251
A93: 2012-11-01 | B93: 9181838 | C93: 414.34 | D93: 0 | E93: 30 | F93: 1 | G93: 5527 | I93: -8181855.141 | J93: 1498596.365 | K93: 0 | L93: 10517154.46 | M93: -844850.5755 | N93: 6162596.723 | O93: 9151641.829
A94: 2012-12-01 | B94: 10491347 | C94: 630.9 | D94: 0 | E94: 31 | F94: 0 | G94: 5517.3 | I94: -8181855.141 | J94: 2281856.559 | K94: 0 | L94: 10867726.27 | M94: 0 | N94: 6151781.238 | O94: 11119508.93
A95: 2013-01-01 | B95: 10899532.4 | C95: 716.23 | D95: 0 | E95: 31 | F95: 0 | G95: 5451.7 | I95: -8181855.141 | J95: 2590480.461 | K95: 0 | L95: 10867726.27 | M95: 0 | N95: 6078637.336 | O95: 11354988.93
A96: 2013-02-01 | B96: 9715342.56 | C96: 650.25 | D96: 0 | E96: 28 | F96: 0 | G96: 5400.4 | I96: -8181855.141 | J96: 2351842.173 | K96: 0 | L96: 9816010.827 | M96: 0 | N96: 6021437.913 | O96: 10007435.77
A97: 2013-03-01 | B97: 9989140.57 | C97: 533.91 | D97: 0.22 | E97: 31 | F97: 1 | G97: 5358.4 | I97: -8181855.141 | J97: 1931060.446 | K97: 5673.930327 | L97: 10867726.27 | M97: -844850.5755 | N97: 5974607.976 | O97: 9752362.908
A98: 2013-04-01 | B98: 8576997.38 | C98: 312.88 | D98: 0.32 | E98: 30 | F98: 1 | G98: 5397 | I98: =const -> -8181855.141 | J98: =HDD_Lond*C98 -> 1131633.032 | K98: =CDD_Lond*D98 -> 8252.989566 | L98: =MonthDays*E98 -> 10517154.46 | M98: =Shoulder1*F98 -> -844850.5755 | N98: =FTE_Ont*G98 -> 6017646.918 | O98: =SUM(I98:N98) -> 8647981.681
A99: 2013-05-01 | B99: 8413381.62 | C99: 145.96 | D99: 16.98 | E99: 31 | F99: 1 | G99: 5505.6 | I99: -8181855.141 | J99: 527912.1625 | K99: 437924.2589 | L99: 10867726.27 | M99: -844850.5755 | N99: 6138735.755 | O99: 8945592.733
A100: 2013-06-01 | B100: 9697931.85 | C100: 30.95 | D100: 59.64 | E100: 30 | F100: 0 | G100: 5618.4 | I100: -8181855.141 | J100: 111940.8155 | K100: 1538150.93 | L100: 10517154.46 | M100: 0 | N100: 6264507.586 | O100: 10249898.65
A101: 2013-07-01 | B101: 11621703.18 | C101: 6 | D101: 109.95 | E101: 31 | F101: 0 | G101: 5716.1 | I101: -8181855.141 | J101: 21700.96584 | K101: 2835675.634 | L101: 10867726.27 | M101: 0 | N101: 6373442.94 | O101: 11916690.67
A102: 2013-08-01 | B102: 10683811.08 | C102: 11.72 | D102: 76.85 | E102: 31 | F102: 0 | G102: 5745 | I102: -8181855.141 | J102: 42389.21995 | K102: 1982007.025 | L102: 10867726.27 | M102: 0 | N102: 6405666.397 | O102: 11115933.77
A103: 2013-09-01 | B103: 9078533.98 | C103: 72.85 | D103: 24.35 | E103: 30 | F103: 1 | G103: 5709.9 | I103: -8181855.141 | J103: 263485.8936 | K103: 628000.9248 | L103: 10517154.46 | M103: -844850.5755 | N103: 6366529.949 | O103: 8748465.509
A104: 2013-10-01 | B104: 8617112.79 | C104: 241.64 | D104: 3.42 | E104: 31 | F104: 1 | G104: 5655.8 | I104: -8181855.141 | J104: 873970.2311 | K104: 88203.82599 | L104: 10867726.27 | M104: -844850.5755 | N104: 6306208.53 | O104: 9109403.143
A105: 2013-11-01 | B105: 9442071.16 | C105: 414.34 | D105: 0 | E105: 30 | F105: 1 | G105: 5587.4 | I105: -8181855.141 | J105: 1498596.365 | K105: 0 | L105: 10517154.46 | M105: -844850.5755 | N105: 6229942.633 | O105: 9218987.738
A106: 2013-12-01 | B106: 11199465.36 | C106: 630.9 | D106: 0 | E106: 31 | F106: 0 | G106: 5558.7 | I106: -8181855.141 | J106: 2281856.559 | K106: 0 | L106: 10867726.27 | M106: 0 | N106: 6197942.176 | O106: 11165669.87
A107: 2014-01-01 | C107: 716.23 | D107: 0 | E107: 31 | F107: 0 | G107: 5512.455579 | I107: -8181855.141 | J107: 2590480.461 | K107: 0 | L107: 10867726.27 | M107: 0 | N107: 6146379.716 | O107: 11422731.31
A108: 2014-02-01 | C108: 650.25 | D108: 0 | E108: 28 | F108: 0 | G108: 5463.40013 | I108: -8181855.141 | J108: 2351842.173 | K108: 0 | L108: 9816010.827 | M108: 0 | N108: 6091682.963 | O108: 10077680.82
A109: 2014-03-01 | C109: 533.91 | D109: 0.22 | E109: 31 | F109: 1 | G109: 5432.827127 | I109: -8181855.141 | J109: 1931060.446 | K109: 5673.930327 | L109: 10867726.27 | M109: -844850.5755 | N109: 6057594.11 | O109: 9835349.043
A110: 2014-04-01 | C110: 312.88 | D110: 0.32 | E110: 30 | F110: 1 | G110: 5476.68552 | I110: -8181855.141 | J110: 1131633.032 | K110: 8252.989566 | L110: 10517154.46 | M110: -844850.5755 | N110: 6106496.153 | O110: 8736830.916
A111: 2014-05-01 | C111: 145.96 | D111: 16.98 | E111: 31 | F111: 1 | G111: 5572.403703 | I111: -8181855.141 | J111: 527912.1625 | K111: 437924.2589 | L111: 10867726.27 | M111: -844850.5755 | N111: 6213221.784 | O111: 9020078.761
A112: 2014-06-01 | C112: 30.95 | D112: 59.64 | E112: 30 | F112: 0 | G112: 5678.39016 | I112: -8181855.141 | J112: 111940.8155 | K112: 1538150.93 | L112: 10517154.46 | M112: 0 | N112: 6331396.525 | O112: 10316787.59
A113: 2014-07-01 | C113: 6 | D113: 109.95 | E113: 31 | F113: 0 | G113: 5768.695372 | I113: -8181855.141 | J113: 21700.96584 | K113: 2835675.634 | L113: 10867726.27 | M113: 0 | N113: 6432086.701 | O113: 11975334.43
A114: 2014-08-01 | C114: 11.72 | D114: 76.85 | E114: 31 | F114: 0 | G114: 5809.642923 | I114: -8181855.141 | J114: 42389.21995 | K114: 1982007.025 | L114: 10867726.27 | M114: 0 | N114: 6477743.159 | O114: 11188010.54
A115: 2014-09-01 | C115: 72.85 | D115: 24.35 | E115: 30 | F115: 1 | G115: 5772.420889 | I115: -8181855.141 | J115: 263485.8936 | K115: 628000.9248 | L115: 10517154.46 | M115: -844850.5755 | N115: 6436240.646 | O115: 8818176.206
A116: 2014-10-01 | C116: 241.64 | D116: 3.42 | E116: 31 | F116: 1 | G116: 5721.743782 | I116: -8181855.141 | J116: 873970.2311 | K116: 88203.82599 | L116: 10867726.27 | M116: -844850.5755 | N116: 6379735.748 | O116: 9182930.361
A117: 2014-11-01 | C117: 414.34 | D117: 0 | E117: 30 | F117: 1 | G117: 5657.838802 | I117: -8181855.141 | J117: 1498596.365 | K117: 0 | L117: 10517154.46 | M117: -844850.5755 | N117: 6308481.791 | O117: 9297526.897
A118: 2014-12-01 | C118: 630.9 | D118: 0 | E118: 31 | F118: 0 | G118: 5638.348815 | I118: -8181855.141 | J118: 2281856.559 | K118: 0 | L118: 10867726.27 | M118: 0 | N118: 6286750.484 | O118: 11254478.17
A119: 2015-01-01 | C119: 716.23 | D119: 0 | E119: 31 | F119: 0 | G119: 5584.117502 | I119: -8181855.141 | J119: 2590480.461 | K119: 0 | L119: 10867726.27 | M119: 0 | N119: 6226282.652 | O119: 11502634.24
A120: 2015-02-01 | C120: 650.25 | D120: 0 | E120: 28 | F120: 0 | G120: 5534.424331 | I120: -8181855.141 | J120: 2351842.173 | K120: 0 | L120: 9816010.827 | M120: 0 | N120: 6170874.841 | O120: 10156872.7
A121: 2015-03-01 | C121: 533.91 | D121: 0.22 | E121: 31 | F121: 1 | G121: 5503.453879 | I121: -8181855.141 | J121: 1931060.446 | K121: 5673.930327 | L121: 10867726.27 | M121: -844850.5755 | N121: 6136342.834 | O121: 9914097.766
A122: 2015-04-01 | C122: 312.88 | D122: 0.32 | E122: 30 | F122: 1 | G122: 5547.882431 | I122: -8181855.141 | J122: 1131633.032 | K122: 8252.989566 | L122: 10517154.46 | M122: -844850.5755 | N122: 6185880.603 | O122: 8816215.366
A123: 2015-05-01 | C123: 145.96 | D123: 16.98 | E123: 31 | F123: 1 | G123: 5644.844951 | I123: -8181855.141 | J123: 527912.1625 | K123: 437924.2589 | L123: 10867726.27 | M123: -844850.5755 | N123: 6293993.667 | O123: 9100850.645
A124: 2015-06-01 | C124: 30.95 | D124: 59.64 | E124: 30 | F124: 0 | G124: 5752.209232 | I124: -8181855.141 | J124: 111940.8155 | K124: 1538150.93 | L124: 10517154.46 | M124: 0 | N124: 6413704.68 | O124: 10399095.74
A125: 2015-07-01 | C125: 6 | D125: 109.95 | E125: 31 | F125: 0 | G125: 5843.688412 | I125: -8181855.141 | J125: 21700.96584 | K125: 2835675.634 | L125: 10867726.27 | M125: 0 | N125: 6515703.828 | O125: 12058951.56
A126: 2015-08-01 | C126: 11.72 | D126: 76.85 | E126: 31 | F126: 0 | G126: 5885.168281 | I126: -8181855.141 | J126: 42389.21995 | K126: 1982007.025 | L126: 10867726.27 | M126: 0 | N126: 6561953.82 | O126: 11272221.2
A127: 2015-09-01 | C127: 72.85 | D127: 24.35 | E127: 30 | F127: 1 | G127: 5847.46236 | I127: -8181855.141 | J127: 263485.8936 | K127: 628000.9248 | L127: 10517154.46 | M127: -844850.5755 | N127: 6519911.775 | O127: 8901847.334
A128: 2015-10-01 | C128: 241.64 | D128: 3.42 | E128: 31 | F128: 1 | G128: 5796.126451 | I128: -8181855.141 | J128: 873970.2311 | K128: 88203.82599 | L128: 10867726.27 | M128: -844850.5755 | N128: 6462672.313 | O128: 9265866.926
A129: 2015-11-01 | C129: 414.34 | D129: 0 | E129: 30 | F129: 1 | G129: 5731.390706 | I129: -8181855.141 | J129: 1498596.365 | K129: 0 | L129: 10517154.46 | M129: -844850.5755 | N129: 6390492.054 | O129: 9379537.16
A130: 2015-12-01 | C130: 630.9 | D130: 0 | E130: 31 | F130: 0 | G130: 5711.647349 | I130: -8181855.141 | J130: 2281856.559 | K130: 0 | L130: 10867726.27 | M130: 0 | N130: 6368478.241 | O130: =SUM(I130:N130) -> 11336205.93

Sheet Normalized Monthly Data Summ
A1: Date | B1: Year | C1: ReskWh | D1: Normalized Value
A2: 2005-04-01 | B2: =YEAR(A2) -> 2005 | C2: 7994353 | D2: 8253272.211
A3: 2005-05-01 | B3: 2005 | C3: 8370528 | D3: 8517990.807
A4: 2005-06-01 | B4: 2005 | C4: 10389917 | D4: 9823857.721
A5: 2005-07-01 | B5: 2005 | C5: 12583059 | D5: 11499569.73
A6: 2005-08-01 | B6: 2005 | C6: 11214871 | D6: 10749545.27
A7: 2005-09-01 | B7: 2005 | C7: 8794917 | D7: 8398467.479
A8: 2005-10-01 | B8: 2005 | C8: 8286547 | D8: 8752046.123
A9: 2005-11-01 | B9: 2005 | C9: 9138335 | D9: 8839553.748
A10: 2005-12-01 | B10: 2005 | C10: 10840969 | D10: 10792591.37
A11: 2006-01-01 | B11: 2006 | C11: 10447261 | D11: 11046803.34
A12: 2006-02-01 | B12: 2006 | C12: 9290165 | D12: 9712853.168
A13: 2006-03-01 | B13: 2006 | C13: 9550777 | D13: 9472163.784
A14: 2006-04-01 | B14: 2006 | C14: 7928570 | D14: 8358862.569
A15: 2006-05-01 | B15: 2006 | C15: 8239356 | D15: 8653686.125
A16: 2006-06-01 | B16: 2006 | C16: 9433262 | D16: 9953755.046
A17: 2006-07-01 | B17: 2006 | C17: 11873826 | D17: 11636491.55
A18: 2006-08-01 | B18: 2006 | C18: 10694615 | D18: 10849226.13
A19: 2006-09-01 | B19: 2006 | C19: 8299435 | D19: 8465590.388
A20: 2006-10-01 | B20: 2006 | C20: 8756421 | D20: 8796200.064
A21: 2006-11-01 | B21: 2006 | C21: 9303930 | D21: 8874787.701
A22: 2006-12-01 | B22: 2006 | C22: 10447715 | D22: 10836745.31
A23: 2007-01-01 | B23: 2007 | C23: 11056491 | D23: 11092741.28
A24: 2007-02-01 | B24: 2007 | C24: 10272579 | D24: 9767153.595
A25: 2007-03-01 | B25: 2007 | C25: 9990728 | D25: 9539732.693
A26: 2007-04-01 | B26: 2007 | C26: 8524722 | D26: 8425539.479
A27: 2007-05-01 | B27: 2007 | C27: 8580554 | D27: 8694718.07
A28: 2007-06-01 | B28: 2007 | C28: 9896039 | D28: 9996682.489
A29: 2007-07-01 | B29: 2007 | C29: 11095426 | D29: 11691126.47
A30: 2007-08-01 | B30: 2007 | C30: 11118846 | D30: 10934412.02
A31: 2007-09-01 | B31: 2007 | C31: 9280411 | D31: 8563710.257
A32: 2007-10-01 | B32: 2007 | C32: 8912500 | D32: 8912382.908
A33: 2007-11-01 | B33: 2007 | C33: 9642232 | D33: 9005131.025
A34: 2007-12-01 | B34: =YEAR(A34) -> 2007 | C34: 11291760 | D34: 10959841.14
A35: 2008-01-01 | B35: 2008 | C35: 11206263 | D35: 11212492.12
A36: 2008-02-01 | B36: 2008 | C36: 10447561 | D36: 10250187.23
A37: 2008-03-01 | B37: 2008 | C37: 10134324 | D37: 9663720.527
A38: 2008-04-01 | B38: 2008 | C38: 8281971 | D38: 8551645.81
A39: 2008-05-01 | B39: 2008 | C39: 8439719 | D39: 8794733.435
A40: 2008-06-01 | B40: 2008 | C40: 9665506 | D40: 10071498.89
A41: 2008-07-01 | B41: 2008 | C41: 11397420 | D41: 11713203.44
A42: 2008-08-01 | B42: 2008 | C42: 10834750 | D42: 10945785
A43: 2008-09-01 | B43: 2008 | C43: 8912187 | D43: 8576978.739
A44: 2008-10-01 | B44: 2008 | C44: 8681291 | D44: 8949400.858
A45: 2008-11-01 | B45: 2008 | C45: 9725130 | D45: 9018065.008
A46: 2008-12-01 | B46: 2008 | C46: 11498791 | D46: 10953039.65
A47: 2009-01-01 | B47: 2009 | C47: 11709609 | D47: 11158080.19
A48: 2009-02-01 | B48: 2009 | C48: 9815166 | D48: 9785105.071
A49: 2009-03-01 | B49: 2009 | C49: 9808765 | D49: 9492122.257
A50: 2009-04-01 | B50: 2009 | C50: 8409247 | D50: 8338458.096
A51: 2009-05-01 | B51: 2009 | C51: 8083578 | D51: 8557238.754
A52: 2009-06-01 | B52: 2009 | C52: 8696876 | D52: 9800777.252
A53: 2009-07-01 | B53: 2009 | C53: 10187430 | D53: 11446049.8
A54: 2009-08-01 | B54: 2009 | C54: 10699164 | D54: 10670826.37
A55: 2009-09-01 | B55: 2009 | C55: 8848220 | D55: 8344724.551
A56: 2009-10-01 | B56: 2009 | C56: 8897476 | D56: 8729300.154
A57: 2009-11-01 | B57: 2009 | C57: 9169954 | D57: 8862634.217
A58: 2009-12-01 | B58: 2009 | C58: 11362006 | D58: 10826487.32
A59: 2010-01-01 | B59: 2010 | C59: 11364520 | D59: 11088615.79
A60: 2010-02-01 | B60: 2010 | C60: 9704226 | D60: 9768380.093
A61: 2010-03-01 | B61: 2010 | C61: 9302812 | D61: 9530701.205
A62: 2010-04-01 | B62: 2010 | C62: 8105351 | D62: 8406250.005
A63: 2010-05-01 | B63: 2010 | C63: 8972250 | D63: 8660041.616
A64: 2010-06-01 | B64: 2010 | C64: 10612346 | D64: 9961560.036
A65: 2010-07-01 | B65: 2010 | C65: 12697627 | D65: 11626679.56
A66: 2010-08-01 | B66: =YEAR(A66) -> 2010 | C66: 11860873 | D66: 10847107.63
A67: 2010-09-01 | B67: 2010 | C67: 8944230 | D67: 8462356.893
A68: 2010-10-01 | B68: 2010 | C68: 8467380 | D68: 8833775.514
A69: 2010-11-01 | B69: 2010 | C69: 9247991 | D69: 8953618.095
A70: 2010-12-01 | B70: 2010 | C70: 11100789 | D70: 10935645.67
A71: 2011-01-01 | B71: 2011 | C71: 11478543 | D71: 11204352.63
A72: 2011-02-01 | B72: 2011 | C72: 9828747 | D72: 9883336.439
A73: 2011-03-01 | B73: 2011 | C73: 9870149 | D73: 9665058.525
A74: 2011-04-01 | B74: 2011 | C74: 8634932 | D74: 8559673.799
A75: 2011-05-01 | B75: 2011 | C75: 8604284 | D75: 8833981.383
A76: 2011-06-01 | B76: 2011 | C76: 9863266 | D76: 10113422.83
A77: 2011-07-01 | B77: 2011 | C77: 13084587 | D77: 11779545.86
A78: 2011-08-01 | B78: 2011 | C78: 11708342 | D78: 11005660.42
A79: 2011-09-01 | B79: 2011 | C79: 8861720 | D79: 8649119.142
A80: 2011-10-01 | B80: 2011 | C80: 8436122 | D80: 8981847.315
A81: 2011-11-01 | B81: 2011 | C81: 8858646 | D81: 9073145.934
A82: 2011-12-01 | B82: 2011 | C82: 10356171 | D82: 11013249.57
A83: 2012-01-01 | B83: 2012 | C83: 10568683 | D83: 11271921.54
A84: 2012-02-01 | B84: 2012 | C84: 9506375 | D84: 10281853.19
A85: 2012-03-01 | B85: 2012 | C85: 8893020 | D85: 9702745.474
A86: 2012-04-01 | B86: 2012 | C86: 7973891 | D86: 8608287.734
A87: 2012-05-01 | B87: 2012 | C87: 8521416 | D87: 8873563.829
A88: 2012-06-01 | B88: 2012 | C88: 10787976 | D88: 10158580.27
A89: 2012-07-01 | B89: 2012 | C89: 13043099 | D89: 11805413.82
A90: 2012-08-01 | B90: 2012 | C90: 11413857 | D90: 11029744.39
A91: 2012-09-01 | B91: 2012 | C91: 8938541 | D91: 8659042.629
A92: 2012-10-01 | B92: 2012 | C92: 8595671 | D92: 9029569.251
A93: 2012-11-01 | B93: 2012 | C93: 9181838 | D93: 9151641.829
A94: 2012-12-01 | B94: 2012 | C94: 10491347 | D94: 11119508.93
A95: 2013-01-01 | B95: 2013 | C95: 10899532.4 | D95: 11354988.93
A96: 2013-02-01 | B96: 2013 | C96: 9715342.56 | D96: 10007435.77
A97: 2013-03-01 | B97: 2013 | C97: 9989140.57 | D97: 9752362.908
A98: 2013-04-01 | B98: =YEAR(A98) -> 2013 | C98: 8576997.38 | D98: 8647981.681
A99: 2013-05-01 | B99: 2013 | C99: 8413381.62 | D99: 8945592.733
A100: 2013-06-01 | B100: 2013 | C100: 9697931.85 | D100: 10249898.65
A101: 2013-07-01 | B101: 2013 | C101: 11621703.18 | D101: 11916690.67
A102: 2013-08-01 | B102: 2013 | C102: 10683811.08 | D102: 11115933.77
A103: 2013-09-01 | B103: 2013 | C103: 9078533.98 | D103: 8748465.509
A104: 2013-10-01 | B104: 2013 | C104: 8617112.79 | D104: 9109403.143
A105: 2013-11-01 | B105: 2013 | C105: 9442071.16 | D105: 9218987.738
A106: 2013-12-01 | B106: 2013 | C106: 11199465.36 | D106: 11165669.87
A107: 2014-01-01 | B107: 2014 | D107: 11422731.31
A108: 2014-02-01 | B108: 2014 | D108: 10077680.82
A109: 2014-03-01 | B109: 2014 | D109: 9835349.043
A110: 2014-04-01 | B110: 2014 | D110: 8736830.916
A111: 2014-05-01 | B111: 2014 | D111: 9020078.761
A112: 2014-06-01 | B112: 2014 | D112: 10316787.59
A113: 2014-07-01 | B113: 2014 | D113: 11975334.43
A114: 2014-08-01 | B114: 2014 | D114: 11188010.54
A115: 2014-09-01 | B115: 2014 | D115: 8818176.206
A116: 2014-10-01 | B116: 2014 | D116: 9182930.361
A117: 2014-11-01 | B117: 2014 | D117: 9297526.897
A118: 2014-12-01 | B118: 2014 | D118: 11254478.17
A119: 2015-01-01 | B119: 2015 | D119: 11502634.24
A120: 2015-02-01 | B120: 2015 | D120: 10156872.7
A121: 2015-03-01 | B121: 2015 | D121: 9914097.766
A122: 2015-04-01 | B122: 2015 | D122: 8816215.366
A123: 2015-05-01 | B123: 2015 | D123: 9100850.645
A124: 2015-06-01 | B124: 2015 | D124: 10399095.74
A125: 2015-07-01 | B125: 2015 | D125: 12058951.56
A126: 2015-08-01 | B126: 2015 | D126: 11272221.2
A127: 2015-09-01 | B127: 2015 | D127: 8901847.334
A128: 2015-10-01 | B128: 2015 | D128: 9265866.926
A129: 2015-11-01 | B129: 2015 | D129: 9379537.16
A130: 2015-12-01 | B130: =YEAR(A130) -> 2015 | D130: 11336205.93

Sheet NormalizedAnnualDataSumm
A2: Annual Actual vs. Normalized ReskWh
B3: ReskWh | C3: Normalized Value
A4: 2005 | B4: 87613496 | C4: 85626894.45
A5: 2006 | B5: 114265333 | C5: 116657165.2
A6: 2007 | B6: 119662288 | C6: 117583171.4
A7: 2008 | B7: 119224913 | C7: 118700750.7
A8: 2009 | B8: 115687491 | C8: 116011804
A9: 2010 | B9: 120380395 | C9: 117074732.1
A10: 2011 | B10: 119585509 | C10: 118762393.8
A11: 2012 | B11: 117915714 | C11: 119691872.9
A12: 2013 | B12: 117935023.9 | C12: 120233411.4
A13: 2014 | C13: 121125915
A14: 2015 | C14: 122104396.6

Sheet NormalizedAnnualDataSumm2
A2: Annual Actual vs. Normalized ReskWh
B3: ReskWh | C3: % Change | D3: Normalized Value | E3: % Change
A4: 2005 | B4: 87613496 | D4: 85626894.45
A5: 2006 | B5: 114265333 | C5: =B5/B4-1 -> 0.3041978487 | D5: 116657165.2 | E5: =D5/D4-1 -> 0.3623893044
A6: 2007 | B6: 119662288 | C6: =B6/B5-1 -> 0.04723177939 | D6: 117583171.4 | E6: =D6/D5-1 -> 0.007937842951
A7: 2008 | B7: 119224913 | C7: -0.003655078031 | D7: 118700750.7 | E7: 0.00950458532
A8: 2009 | B8: 115687491 | C8: -0.02967015795 | D8: 116011804 | E8: -0.02265315643
A9: 2010 | B9: 120380395 | C9: 0.04056535378 | D9: 117074732.1 | E9: 0.009162240698
A10: 2011 | B10: 119585509 | C10: -0.00660311839 | D10: 118762393.8 | E10: 0.01441525172
A11: 2012 | B11: 117915714 | C11: -0.01396318847 | D11: 119691872.9 | E11: 0.007826375064
A12: 2013 | B12: 117935023.9 | C12: 0.0001637604467 | D12: 120233411.4 | E12: 0.004524438239
A13: 2014 | D13: 121125915 | E13: 0.007423091993
A14: 2015 | D14: 122104396.6 | E14: 0.008078217835
